Workbook

Sheet بيانات
AD1: أجر مكمل 5% 2022
F6: اعدادى 1 | W6: 1 | AC6: 1 | BN6: اعدادى 1
D7: مسلسل | E7: الحالة الاجتماعية | F7: المرتب الأساسى | G7: ابريل2022 | AL7: جـــــــــــــــــــــــــــــــــــــــــــــــــــــــــــــــارى ضرائـــــــــــــــــــــــــــــــــــــــــــــــــــــــب | AV7: إستحقــــــــــــــــــــــــــــاق هيئــــــــــــــــــــــــــــــــــــــــــــــــــــــــــــــــــــــــــــــات وشــــــــــــــــــــــــــــــــــــــــــــــــــــــركـــــــــــــــــــــــــــــــــــــات | BM7: جملة الاستقطاعات | BN7: صافى المقتضى صرفه | BO7: اسم الموظف | BP7: الدرجة | BQ7: التوقيع بالاستلام
C8: اساسى 2014 | G8: 10% 2014 | H8: 10% 2015 | I8: 15% 2022 | J8: حافز 25% | K8: أداء | L8: كادر | M8: كادرين | N8: تطوير | O8: أعباء | P8: 2019 2020 2021 | R8: 2022 | S8: حافز تكميلى | T8: بدل تعليم | U8: حافز أداء | V8: مكافئة مدرس | W8: مكافئة ادارى | X8: اجتماعية | Y8: اضافية | Z8: حافز دمج | AA8: حافز مدير أو وكيل | AB8: الأجر الوظيفى | AC8: الأجر المكمل | AD8: أجر مكمل 5% 2022 | AE8: 8% 2022 | AF8: الحافز التعويضى | AG8: 0.915 | AH8: الحد الأدنى | AI8: دكتوراه | AJ8: المنحة | AK8: جملة المستحق | AL8: حصة الحكومة 12% | AM8: إشتراك موظف 9% | AN8: أقساط المدة السابقة | AO8: 0.01 | AP8: إدخار 1% | AQ8: 2% رعاية | AR8: 0.02 | AS8: بدل إعارة | AT8: كسب عمل | AU8: دمغة عادية | AV8: قسط شريحة | AW8: صندوق الشهداء | AX8: نقابة مهن تعليمية | AY8: رعاية صحية | AZ8: تأمين اجتماعى | BA8: نادى معلمين | BB8: رابطة جامعيين | BC8: صندوق زمالة | BD8: مهن تطبيقية | BE8: نقابة مهن تعليمية | BF8: لجنة نقابة | BG8: صندوق زمالة | BH8: بحث علمى | BI8: مهن زراعية | BJ8: مهن اجتماعية | BK8: استبعاد حافز أداء | BL8: كسر القرش | BU8: مقطوعة مجمعة | BV8: اساسى وهمى | CE8: دمغة عادية | CF8: دمغة عادية | CG8: دمغة عادية
AJ9: 10 | AX9: 4.5 | AY9: 2 | AZ9: 0.25 | BA9: 3 | BB9: 0.5 | BE9: قرض
A10: اعدادى 1 | B10: =BO10 -> وصال حسين بلحه | C10: 695.46 | D10: 1 | F10: 2144.3 | G10: 65.35 | H10: =IF(BS10="مدرس",ROUND(C10*10%,2),"") -> 69.55 | I10: =ROUND(F10*15%,2) -> 321.65 | J10: =IF(BS10="مدرس",ROUND(C10*25%,2),"") -> 173.87 | K10: =IF(BS10="مدرس",IF(BP10="كبير",ROUND(C10*25%,2),IF(BP10="كبير ا",ROUND(C10*25%,2),IF(BP10="اولى",ROUND(C10*25%,2),IF(BP10="ثانيه",ROUND(C10*50%,2),IF(BP10="ثالثه",ROUND(C10*75%,2),IF(BP10="م م",ROUND(C10*125%,2))))))),"") -> 173.87 | L10: =IF(BS10="مدرس",ROUND(C10*50%,2),"") -> 347.73 | M10: 1390.92 | O10: =IF(BS10="مدرس",IF(BP10="كبير ا",300,IF(BP10="كبير",325,IF(BP10="اولى",350,IF(BP10="ثانيه",375,IF(BP10="ثالثه",400,""))))),"") -> 300 | P10: 875 | Q10: اعدادى 1 | R10: =IF(BP10="","",IF(BP10="كبير ا",375,IF(BP10="كبير",350,IF(BP10="اولى",325,IF(BP10="ثانيه",275,IF(BP10="ثالثه",225,IF(BP10="خامسه",175))))))) -> 375 | T10: =IF(BS10="مدرس",IF(BP10="كبير ا",180,IF(BP10="كبير",165,IF(BP10="اولى",125,IF(BP10="ثانيه",100,IF(BP10="ثالثه",75,))))),"") -> 180 | U10: =IF(BS10="مدرس",IF(BP10="كبير ا",140,IF(BP10="كبير",145,IF(BP10="اولى",150,IF(BP10="ثانيه",165,IF(BP10="ثالثه",185,))))),"") -> 140 | V10: =IF(BS10="مدرس",IF(BP10="كبير ا",155,IF(BP10="كبير",140,IF(BP10="اولى",120,IF(BP10="ثانيه",85,IF(BP10="ثالثه",65,))))),"") -> 155 | W10: =IF(BS10="مدرس","",IF(BP10="اولى",85,IF(BP10="ثانيه",65,IF(BP10="ثالثه",55,IF(BP10="رابعه",50,IF(BP10="خامسه",50,)))))) ->  | X10: 2 | Y10: 4 | AE10: =IF(BS10="مدرس","",ROUND(AB10*8%,2)) ->  | AJ10: =IF(BS10="مدرس",$AJ$9,"") -> 10 | AK10: =SUM(F10:AJ10) -> 6728.24 | AM10: =ROUND(CA10*9%,2) -> 604.64 | AO10: =ROUND(CA10*1%,2) -> 67.18 | AP10: =ROUND(CA10*1%,2) -> 67.18 | AQ10: 9.5 | AR10: =IF(BS10="مدرس",IF(BP10="كبير ا",3.1,IF(BP10="كبير",2.8,IF(BP10="اولى",2.4,IF(BP10="ثانيه",1.7,IF(BP10="ثالثه",1.3,))))),"") -> 3.1 | AT10: 173.7 | AU10: 36.6 | AW10: 3 | AX10: =IF($BS10="مدرس",$AX$9,"") -> 4.5 | AY10: =IF($BS10="مدرس",$AY$9,"") -> 2 | AZ10: =IF($BS10="مدرس",$AZ$9,"") -> 0.25 | BA10: =IF($BS10="مدرس",$BA$9,"") -> 3 | BB10: =IF($BS10="مدرس",$BB$9,"") -> 0.5 | BC10: =IF(BS10="مدرس",ROUND(F10*7%,2),"") -> 150.1 | BL10: 0.04 | BM10: =SUM(AL10:BL10) -> 1125.29 | BN10: =AK10-BM10 -> 5602.95 | BO10: وصال حسين بلحه | BP10: كبير ا | BS10: مدرس | BT10: كبير معلمين | BU10: =SUM(P10:R10) -> 1250 | BX10: كبير ا | CA10: =SUM(F10:AI10) -> 6718.24 | CE10: =IF((BN10<=50),CEILING(TRUNC((BN10-50)*0,2),0.05),IF((BN10<=250),CEILING(TRUNC((BN10-50)*0.006,2),0.05),IF((BN10<=500),CEILING(TRUNC((BN10-50)*0.0065,2),0.05),IF((BN10<=1000),CEILING(TRUNC((BN10-50)*0.007,2),0.05),IF((BN10<=5000),CEILING(TRUNC((BN10-50)*0.0075,2),0.05),IF((BN10<=10000),CEILING(TRUNC((BN10-50)*0.008,2),0.05),IF((BN10>10000),(10000-50)*0.008+(BN10-10000)*0.003,0))))))) -> 44.45 | CF10: =IF(BN10<=50,"",CEILING(IF(AND(BN10>50,BN10<=250),(BN10-50)*0.006,IF(AND(BN10>250,BN10<=500),(BN10-250)*65/10000+1.2,IF(AND(BN10>500,BN10<=1000),(BN10-500)*7/1000+2.83,IF(AND(BN10>1000,BN10<=5000),(BN10-1000)*75/10000+6.33,IF(AND(BN10>5000,BN10<=10000),(BN10-5000)*8/1000+36.33,IF(BN10>10000,(BN10-10000)*3/1000+76.33)))))),0.05)) -> 41.2 | CG10: =CEILING(ROUND(IF(BN10>10000,(AK10-10000)*0.003+(10000-50)*0.008,IF(AND(BN10>5000,BN10<=10000),(AK10-50)*0.008,IF(AND(BN10>1000,BN10<=5000),(AK10-50)*0.0075,IF(AND(BN10>500,BN10<=1000),(AK10-50)*0.007,IF(AND(BN10>250,BN10<=500),(AK10-50)*0.0065,IF(AND(BN10>50,BN10<=250),(AK10-50)*0.006,0)))))),2),0.05) -> 53.45 | CH10: 36.6 | CI10: =IF(BN10>5500,"3",IF(BN10>4500,"2.5",IF(BN10>3500,"2",IF(BN10>2500,"1.5",IF(BN10>1500,1))))) -> 3
A11: اعدادى 1 | B11: =BO11 -> عاطف عبدالعظيم النجار | C11: 576.69 | D11: 2 | F11: 1821.07 | G11: 53.6 | H11: =IF(BS11="مدرس",ROUND(C11*10%,2),"") -> 57.67 | I11: =ROUND(F11*15%,2) -> 273.16 | J11: =IF(BS11="مدرس",ROUND(C11*25%,2),"") -> 144.17 | K11: =IF(BS11="مدرس",IF(BP11="كبير",ROUND(C11*25%,2),IF(BP11="كبير ا",ROUND(C11*25%,2),IF(BP11="اولى",ROUND(C11*25%,2),IF(BP11="ثانيه",ROUND(C11*50%,2),IF(BP11="ثالثه",ROUND(C11*75%,2),IF(BP11="م م",ROUND(C11*125%,2))))))),"") -> 144.17 | L11: =IF(BS11="مدرس",ROUND(C11*50%,2),"") -> 288.35 | M11: 1197.37 | O11: =IF(BS11="مدرس",IF(BP11="كبير ا",300,IF(BP11="كبير",325,IF(BP11="اولى",350,IF(BP11="ثانيه",375,IF(BP11="ثالثه",400,""))))),"") -> 300 | P11: 850 | Q11: اعدادى 1 | R11: =IF(BP11="","",IF(BP11="كبير ا",375,IF(BP11="كبير",350,IF(BP11="اولى",325,IF(BP11="ثانيه",275,IF(BP11="ثالثه",225,IF(BP11="خامسه",175))))))) -> 375 | T11: =IF(BS11="مدرس",IF(BP11="كبير ا",180,IF(BP11="كبير",165,IF(BP11="اولى",125,IF(BP11="ثانيه",100,IF(BP11="ثالثه",75,))))),"") -> 180 | U11: =IF(BS11="مدرس",IF(BP11="كبير ا",140,IF(BP11="كبير",145,IF(BP11="اولى",150,IF(BP11="ثانيه",165,IF(BP11="ثالثه",185,))))),"") -> 140 | V11: =IF(BS11="مدرس",IF(BP11="كبير ا",155,IF(BP11="كبير",140,IF(BP11="اولى",120,IF(BP11="ثانيه",85,IF(BP11="ثالثه",65,))))),"") -> 155 | W11: =IF(BS11="مدرس","",IF(BP11="اولى",85,IF(BP11="ثانيه",65,IF(BP11="ثالثه",55,IF(BP11="رابعه",50,IF(BP11="خامسه",50,)))))) ->  | X11: 6 | Y11: 4 | AE11: =IF(BS11="مدرس","",ROUND(AB11*8%,2)) ->  | AJ11: =IF(BS11="مدرس",$AJ$9,"") -> 10 | AK11: =SUM(F11:AJ11) -> 5999.56 | AM11: =ROUND(CA11*9%,2) -> 539.06 | AO11: =ROUND(CA11*1%,2) -> 59.9 | AP11: =ROUND(CA11*1%,2) -> 59.9 | AQ11: 9.5 | AR11: =IF(BS11="مدرس",IF(BP11="كبير ا",3.1,IF(BP11="كبير",2.8,IF(BP11="اولى",2.4,IF(BP11="ثانيه",1.7,IF(BP11="ثالثه",1.3,))))),"") -> 3.1 | AT11: 139 | AU11: 32.8 | AW11: 2.5 | AX11: =IF($BS11="مدرس",$AX$9,"") -> 4.5 | AY11: =IF($BS11="مدرس",$AY$9,"") -> 2 | AZ11: =IF($BS11="مدرس",$AZ$9,"") -> 0.25 | BA11: =IF($BS11="مدرس",$BA$9,"") -> 3 | BB11: =IF($BS11="مدرس",$BB$9,"") -> 0.5 | BC11: =IF(BS11="مدرس",ROUND(F11*7%,2),"") -> 127.47 | BL11: 0.03 | BM11: =SUM(AL11:BL11) -> 983.51 | BN11: =AK11-BM11 -> 5016.05 | BO11: عاطف عبدالعظيم النجار | BP11: كبير ا | BS11: مدرس | BT11: كبير معلمين | BU11: 1225 | BX11: كبير | CA11: =SUM(F11:AI11) -> 5989.56 | CE11: =IF((BN11<=50),CEILING(TRUNC((BN11-50)*0,2),0.05),IF((BN11<=250),CEILING(TRUNC((BN11-50)*0.006,2),0.05),IF((BN11<=500),CEILING(TRUNC((BN11-50)*0.0065,2),0.05),IF((BN11<=1000),CEILING(TRUNC((BN11-50)*0.007,2),0.05),IF((BN11<=5000),CEILING(TRUNC((BN11-50)*0.0075,2),0.05),IF((BN11<=10000),CEILING(TRUNC((BN11-50)*0.008,2),0.05),IF((BN11>10000),(10000-50)*0.008+(BN11-10000)*0.003,0))))))) -> 39.75 | CF11: =IF(BN11<=50,"",CEILING(IF(AND(BN11>50,BN11<=250),(BN11-50)*0.006,IF(AND(BN11>250,BN11<=500),(BN11-250)*65/10000+1.2,IF(AND(BN11>500,BN11<=1000),(BN11-500)*7/1000+2.83,IF(AND(BN11>1000,BN11<=5000),(BN11-1000)*75/10000+6.33,IF(AND(BN11>5000,BN11<=10000),(BN11-5000)*8/1000+36.33,IF(BN11>10000,(BN11-10000)*3/1000+76.33)))))),0.05)) -> 36.5 | CG11: =CEILING(ROUND(IF(BN11>10000,(AK11-10000)*0.003+(10000-50)*0.008,IF(AND(BN11>5000,BN11<=10000),(AK11-50)*0.008,IF(AND(BN11>1000,BN11<=5000),(AK11-50)*0.0075,IF(AND(BN11>500,BN11<=1000),(AK11-50)*0.007,IF(AND(BN11>250,BN11<=500),(AK11-50)*0.0065,IF(AND(BN11>50,BN11<=250),(AK11-50)*0.006,0)))))),2),0.05) -> 47.6 | CH11: 32.8 | CI11: =IF(BN11>5500,"3",IF(BN11>4500,"2.5",IF(BN11>3500,"2",IF(BN11>2500,"1.5",IF(BN11>1500,1))))) -> 2.5
A12: اعدادى 1 | B12: مسعد ونس عبدالحميد | C12: 599.09 | D12: 3 | F12: 1882.83 | G12: 55.72 | H12: 59.91 | I12: 282.42 | J12: 149.77 | K12: 149.77 | L12: 299.55 | M12: 1198.17 | O12: 300 | P12: 850 | Q12: اعدادى 1 | R12: 375 | T12: 180 | U12: 140 | V12: 155 | X12: 6 | Y12: 4 | AJ12: 10 | AK12: 6098.14 | AM12: 547.93 | AN12: 2.82 | AO12: 60.88 | AP12: 60.88 | AQ12: 9.5 | AR12: 3.1 | AS12: 90 | AT12: 122.1 | AU12: 33.2 | AW12: 2.5 | AX12: 4.5 | AY12: 2 | AZ12: 0.25 | BA12: 3 | BB12: 0.5 | BC12: 131.8 | BE12: 250 | BL12: 0.03 | BM12: 1324.99 | BN12: 4773.15 | BO12: مسعد ونس عبدالحميد | BP12: كبير ا | BS12: مدرس | BT12: كبير معلمين | BU12: 1225 | BX12: اولى | CA12: 6088.14 | CE12: 35.45 | CF12: 34.65 | CG12: 45.4 | CH12: 33.2 | CI12: 2.5
A13: اعدادى 1 | B13: اعدادى | C13: 578.31 | D13: 4 | F13: 1825.4 | G13: 53.76 | H13: 57.83 | I13: 273.81 | J13: 144.58 | K13: 144.58 | L13: 289.16 | M13: 1156.6 | O13: 300 | P13: 850 | Q13: اعدادى 1 | R13: 375 | T13: 180 | U13: 140 | V13: 155 | X13: 6 | Y13: 4 | AJ13: 10 | AK13: 5965.72 | AM13: 536.01 | AO13: 59.56 | AP13: 59.56 | AQ13: 9.5 | AR13: 3.1 | AT13: 137 | AU13: 32.5 | AW13: 2.5 | AX13: 4.5 | AY13: 2 | AZ13: 0.25 | BA13: 3 | BB13: 0.5 | BC13: 127.78 | BL13: 0.01 | BM13: 977.77 | BN13: 4987.95 | BO13: محمد صالحين محمد | BP13: كبير ا | BS13: مدرس | BT13: كبير معلمين | BU13: 1225 | BX13: ثانيه | CA13: 5955.72 | CE13: 37.05 | CF13: 36.25 | CG13: 44.4 | CH13: 32.5 | CI13: 2.5
A14: اعدادى 1 | B14: لبنى حمدى محمد | C14: 695.31 | D14: 5 | F14: 2142.44 | G14: 65.34 | H14: 69.53 | I14: 321.37 | J14: 173.83 | K14: 173.83 | L14: 347.66 | M14: 1390.6 | O14: 300 | P14: 875 | Q14: اعدادى 1 | R14: 375 | T14: 180 | U14: 140 | V14: 155 | X14: 2 | Y14: 4 | Z14: 173.82 | AJ14: 10 | AK14: 6899.42 | AM14: 620.05 | AO14: 68.89 | AP14: 68.89 | AQ14: 9.5 | AR14: 3.1 | AT14: 177 | AU14: 40.45 | AW14: 2.5 | AX14: 4.5 | AY14: 2 | AZ14: 0.25 | BA14: 3 | BB14: 0.5 | BC14: 149.97 | BK14: 279.3 | BL14: 0.02 | BM14: 1429.92 | BN14: 5469.5 | BO14: لبنى حمدى محمد | BP14: كبير ا | BS14: مدرس | BT14: كبير معلمين | BU14: 1250 | BX14: ثالثه | CA14: 6889.42 | CE14: 43.35 | CF14: 40.1 | CG14: 54.8 | CH14: 40.45 | CI14: 2.5
A15: اعدادى 1 | B15: جيهان فتحى محمود | C15: 548.4 | D15: 6 | F15: 1773.67 | G15: 51.55 | H15: 54.84 | I15: 266.05 | J15: 137.1 | K15: 137.1 | L15: 274.2 | M15: 959.7 | O15: 325 | P15: 825 | Q15: اعدادى 1 | R15: 350 | T15: 165 | U15: 145 | V15: 140 | X15: 2 | Y15: 4 | AA15: 250 | AJ15: 10 | AK15: 5870.21 | AM15: 527.42 | AO15: 58.6 | AP15: 58.6 | AQ15: 9 | AR15: 2.8 | AT15: 119.6 | AU15: 30.3 | AW15: 2.5 | AX15: 4.5 | AY15: 2 | AZ15: 0.25 | BA15: 3 | BB15: 0.5 | BC15: 124.16 | BL15: 0.03 | BM15: 943.26 | BN15: 4926.95 | BO15: جيهان فتحى محمود | BP15: كبير | BS15: مدرس | BT15: معلم خبير | BU15: 1175 | BX15: رابعه | CA15: 5860.21 | CE15: 36.6 | CF15: 35.8 | CG15: 43.65 | CH15: 30.3 | CI15: 2.5
A16: اعدادى 1 | B16: محمد نجاح نصر | C16: 531.62 | D16: 7 | F16: 1723.35 | G16: 49.98 | H16: 53.16 | I16: 258.5 | J16: 132.91 | K16: 132.91 | L16: 265.81 | M16: 930.35 | O16: 325 | P16: 825 | Q16: اعدادى 1 | R16: 350 | T16: 165 | U16: 145 | V16: 140 | X16: 6 | Y16: 4 | AJ16: 10 | AK16: 5516.97 | AM16: 495.63 | AO16: 55.07 | AP16: 55.07 | AQ16: 9 | AR16: 2.8 | AT16: 115 | AU16: 29.8 | AW16: 2.5 | AX16: 4.5 | AY16: 2 | AZ16: 0.25 | BA16: 3 | BB16: 0.5 | BC16: 120.63 | BL16: 0.02 | BM16: 895.77 | BN16: 4621.2 | BO16: محمد نجاح نصر | BP16: كبير | BS16: مدرس | BT16: معلم خبير | BU16: 1175 | BX16: خامسه | CA16: 5506.97 | CE16: 34.3 | CF16: 33.5 | CG16: 41 | CH16: 29.8 | CI16: 2.5
A17: اعدادى 1 | B17: زينات البيلى حسب الله | C17: 507.94 | D17: 8 | F17: 1667.05 | G17: 47.77 | H17: 50.79 | I17: 250.06 | J17: 126.99 | K17: 126.99 | L17: 253.97 | M17: 888.83 | O17: 325 | P17: 825 | Q17: اعدادى 1 | R17: 350 | T17: 165 | U17: 145 | V17: 140 | X17: 2 | Y17: 4 | AJ17: 10 | AK17: 5378.45 | AM17: 483.16 | AO17: 53.68 | AP17: 53.68 | AQ17: 9 | AR17: 2.8 | AT17: 118 | AU17: 29 | AW17: 2.5 | AX17: 4.5 | AY17: 2 | AZ17: 0.25 | BA17: 3 | BB17: 0.5 | BC17: 116.69 | BL17: 0.04 | BM17: 878.8 | BN17: 4499.65 | BO17: زينات البيلى حسب الله | BP17: كبير | BS17: مدرس | BT17: معلم خبير | BU17: 1175 | BX17: سادسه | CA17: 5368.45 | CE17: 33.4 | CF17: 32.6 | CG17: 40 | CH17: 29 | CI17: 2
A18: اعدادى 1 | B18: هاله المغازى محمد | C18: 487.1 | D18: 9 | F18: 1618.99 | G18: 45.8 | H18: 48.71 | I18: 242.85 | J18: 121.78 | K18: 121.78 | L18: 243.55 | M18: 852.42 | O18: 325 | P18: 825 | Q18: اعدادى 1 | R18: 350 | T18: 165 | U18: 145 | V18: 140 | X18: 2 | Y18: 4 | AJ18: 10 | AK18: 5261.88 | AM18: 472.67 | AO18: 52.52 | AP18: 52.52 | AQ18: 9 | AR18: 2.8 | AT18: 86 | AU18: 28.4 | AW18: 2 | AX18: 4.5 | AY18: 2 | AZ18: 0.25 | BA18: 3 | BB18: 0.5 | BC18: 113.33 | BL18: 0.04 | BM18: 829.53 | BN18: 4432.35 | BO18: هاله المغازى محمد | BP18: كبير | BS18: مدرس | BT18: معلم خبير | BU18: 1175 | CA18: 5251.88 | CE18: 32.9 | CF18: 32.1 | CG18: 39.1 | CH18: 28.4 | CI18: 2
A19: اعدادى 1 | B19: خالد ابوالنصر ميسره | C19: 471.09 | D19: 10 | F19: 1586.83 | G19: 44.29 | H19: 47.11 | I19: 238.02 | J19: 117.77 | K19: 117.77 | L19: 235.55 | M19: 824.4 | O19: 325 | P19: 825 | Q19: اعدادى 1 | R19: 350 | T19: 165 | U19: 145 | V19: 140 | X19: 2 | Y19: 4 | AJ19: 10 | AK19: 5177.74 | AM19: 465.1 | AO19: 51.68 | AP19: 51.68 | AQ19: 9 | AR19: 2.8 | AT19: 12.6 | AU19: 27.9 | AW19: 2 | AX19: 4.5 | AY19: 2 | AZ19: 0.25 | BA19: 3 | BB19: 0.5 | BC19: 111.08 | BD19: 9 | BM19: 753.09 | BN19: 4424.65 | BO19: خالد ابوالنصر ميسره | BP19: كبير | BS19: مدرس | BT19: معلم خبير | BU19: 1175 | CA19: 5167.74 | CE19: 32.8 | CF19: 32.05 | CG19: 38.5 | CH19: 27.9 | CI19: 2
A20: اعدادى 1 | B20: سماح حجازى بدر | C20: 462.97 | D20: 11 | F20: 1563.14 | G20: 42.51 | H20: 46.3 | I20: 234.47 | J20: 115.74 | K20: 115.74 | L20: 231.49 | M20: 810.19 | O20: 325 | P20: 800 | Q20: اعدادى 2 | R20: 350 | T20: 165 | U20: 145 | V20: 140 | X20: 2 | Y20: 4 | AJ20: 10 | AK20: 5100.58 | AM20: 458.15 | AO20: 50.91 | AP20: 50.91 | AQ20: 9 | AR20: 2.8 | AT20: 79.7 | AU20: 27.5 | AW20: 2 | AX20: 4.5 | AY20: 2 | AZ20: 0.25 | BA20: 3 | BB20: 0.5 | BC20: 109.42 | BL20: 0.04 | BM20: 800.68 | BN20: 4299.9 | BO20: سماح حجازى بدر | BP20: كبير | BS20: مدرس | BT20: معلم خبير | BU20: 1150 | CA20: 5090.58 | CE20: 31.9 | CF20: 31.1 | CG20: 37.9 | CH20: 27.5 | CI20: 2
A21: اعدادى 1 | B21: علاء ابراهيم النمراوى | C21: 445.42 | D21: 12 | F21: 1526.75 | G21: 40.85 | H21: 44.54 | I21: 229.01 | J21: 111.36 | K21: 111.36 | L21: 222.71 | M21: 779.48 | O21: 325 | P21: 800 | Q21: اعدادى 2 | R21: 350 | T21: 165 | U21: 145 | V21: 140 | X21: 6 | Y21: 4 | AJ21: 10 | AK21: 5011.06 | AM21: 450.1 | AO21: 50.01 | AP21: 50.01 | AQ21: 9 | AR21: 2.8 | AT21: 76.3 | AU21: 27 | AW21: 2 | AX21: 4.5 | AY21: 2 | AZ21: 0.25 | BA21: 3 | BB21: 0.5 | BC21: 106.87 | BL21: 0.02 | BM21: 784.36 | BN21: 4226.7 | BO21: علاء ابراهيم النمراوى | BP21: كبير | BS21: مدرس | BT21: معلم خبير | BU21: 1150 | CA21: 5001.06 | CE21: 31.35 | CF21: 30.55 | CG21: 37.25 | CH21: 27 | CI21: 2
A22: اعدادى 1 | B22: سمير محمود البيلى | C22: 526.06 | D22: 13 | F22: 1710.95 | G22: 49.43 | H22: 52.61 | I22: 256.64 | J22: 131.52 | K22: 131.52 | L22: 263.03 | M22: 920.6 | O22: 325 | P22: 825 | Q22: اعدادى 2 | R22: 350 | T22: 165 | U22: 145 | V22: 140 | X22: 6 | Y22: 4 | AJ22: 10 | AK22: 5486.3 | AM22: 492.87 | AO22: 54.76 | AP22: 54.76 | AQ22: 9 | AR22: 2.8 | AT22: 113 | AU22: 29.6 | AW22: 2.5 | AX22: 4.5 | AY22: 2 | AZ22: 0.25 | BA22: 3 | BB22: 0.5 | BC22: 119.77 | BL22: 0.04 | BM22: 889.35 | BN22: 4596.95 | BO22: سمير محمود البيلى | BP22: كبير | BS22: مدرس | BT22: معلم خبير | BU22: 1175 | CA22: 5476.3 | CE22: 34.1 | CF22: 33.35 | CG22: 40.8 | CH22: 29.6 | CI22: 2.5
A23: اعدادى 1 | B23: محمد رجب حسن | C23: 482.1 | D23: 14 | F23: 1615.58 | G23: 45.3 | H23: 48.21 | I23: 242.34 | J23: 120.53 | K23: 120.53 | L23: 241.05 | M23: 843.67 | O23: 325 | P23: 825 | Q23: اعدادى 2 | R23: 350 | T23: 165 | U23: 145 | V23: 140 | X23: 6 | Y23: 4 | AJ23: 10 | AK23: 5247.21 | AM23: 471.35 | AO23: 52.37 | AP23: 52.37 | AQ23: 9 | AR23: 2.8 | AT23: 85.5 | AU23: 28.3 | AW23: 2 | AX23: 4.5 | AY23: 2 | AZ23: 0.25 | BA23: 3 | BB23: 0.5 | BC23: 113.09 | BL23: 0.03 | BM23: 827.06 | BN23: 4420.15 | BO23: محمد رجب حسن | BP23: كبير | BS23: مدرس | BT23: معلم خبير | BU23: 1175 | CA23: 5237.21 | CE23: 32.8 | CF23: 32 | CG23: 39 | CH23: 28.3 | CI23: 2
A24: اعدادى 1 | B24: مجدى يوسف الجندى | C24: 639.7 | D24: 15 | F24: 1989.73 | G24: 60.07 | H24: 63.97 | I24: 298.46 | J24: 159.93 | K24: 159.93 | L24: 319.85 | M24: 1119.49 | O24: 325 | P24: 825 | Q24: اعدادى 2 | R24: 350 | T24: 165 | U24: 145 | V24: 140 | X24: 6 | Y24: 4 | AJ24: 10 | AK24: 6141.43 | AM24: 551.83 | AO24: 61.31 | AP24: 61.31 | AQ24: 9 | AR24: 2.8 | AT24: 145 | AU24: 33.15 | AW24: 2.5 | AX24: 4.5 | AY24: 2 | AZ24: 0.25 | BA24: 3 | BB24: 0.5 | BC24: 139.28 | BM24: 1016.43 | BN24: 5125 | BO24: مجدى يوسف الجندى | BP24: كبير | BS24: مدرس | BT24: معلم خبير | BU24: 1175 | CA24: 6131.43 | CE24: 40.6 | CF24: 37.35 | CG24: 48.75 | CH24: 33.15 | CI24: 2.5
A25: اعدادى 1 | B25: عاصم احمد عاصم | C25: 356.96 | D25: 16 | F25: 1340.08 | G25: 33.05 | H25: 35.7 | I25: 201.01 | J25: 89.24 | K25: 89.24 | L25: 178.48 | M25: 535.44 | O25: 350 | P25: 775 | Q25: اعدادى 2 | R25: 325 | S25: 303 | T25: 125 | U25: 150 | V25: 120 | X25: 2 | Y25: 4 | AJ25: 10 | AK25: 4666.24 | AM25: 419.06 | AO25: 46.56 | AP25: 46.56 | AQ25: 7.9 | AR25: 2.4 | AT25: 64.7 | AU25: 25.5 | AW25: 2 | AX25: 4.5 | AY25: 2 | AZ25: 0.25 | BA25: 3 | BB25: 0.5 | BC25: 93.81 | BM25: 718.74 | BN25: 3947.5 | BO25: عاصم احمد عاصم | BP25: اولى | BS25: مدرس | BT25: معلم أول أ | BU25: 1100 | CA25: 4656.24 | CE25: 29.25 | CF25: 28.45 | CG25: 34.65 | CH25: 25.5 | CI25: 2
A26: اعدادى 1 | B26: نهاد عبدالعزيز بدير | C26: 359.9 | D26: 17 | F26: 1354.27 | G26: 33.84 | H26: 35.99 | I26: 203.14 | J26: 89.98 | K26: 89.98 | L26: 179.95 | M26: 539.85 | O26: 350 | P26: 775 | Q26: اعدادى 2 | R26: 325 | S26: 281 | T26: 125 | U26: 150 | V26: 120 | X26: 2 | Y26: 4 | AJ26: 10 | AK26: 4669 | AM26: 419.31 | AO26: 46.59 | AP26: 46.59 | AQ26: 7.9 | AR26: 2.4 | AT26: 64.7 | AU26: 25.4 | AW26: 2 | AX26: 4.5 | AY26: 2 | AZ26: 0.25 | BA26: 3 | BB26: 0.5 | BC26: 94.8 | BL26: 0.01 | BM26: 719.95 | BN26: 3949.05 | BO26: نهاد عبدالعزيز بدير | BP26: اولى | BS26: مدرس | BT26: معلم أول أ | BU26: 1100 | CA26: 4659 | CE26: 29.25 | CF26: 28.45 | CG26: 34.65 | CH26: 25.4 | CI26: 2
A27: اعدادى 1 | B27: محمود شحاته محمد | C27: 356.96 | D27: 18 | F27: 1347.73 | G27: 33.54 | H27: 35.7 | I27: 202.16 | J27: 89.24 | K27: 89.24 | L27: 178.48 | M27: 535.44 | O27: 350 | P27: 775 | Q27: اعدادى 2 | R27: 325 | S27: 290 | T27: 125 | U27: 150 | V27: 120 | X27: 6 | Y27: 4 | AJ27: 10 | AK27: 4666.53 | AM27: 419.09 | AO27: 46.57 | AP27: 46.57 | AQ27: 7.9 | AR27: 2.4 | AT27: 64.7 | AU27: 25.4 | AW27: 2 | AX27: 4.5 | AY27: 2 | AZ27: 0.25 | BA27: 3 | BB27: 0.5 | BC27: 94.34 | BL27: 0.01 | BM27: 719.23 | BN27: 3947.3 | BO27: محمود شحاته محمد | BP27: اولى | BS27: مدرس | BT27: معلم أول أ | BU27: 1100 | CA27: 4656.53 | CE27: 29.25 | CF27: 28.45 | CG27: 34.65 | CH27: 25.4 | CI27: 2
A28: اعدادى 1 | B28: محمد الحايس البدراوى | C28: 507.57 | D28: 19 | F28: 1671.01 | G28: 47.67 | H28: 50.76 | I28: 250.65 | J28: 126.89 | K28: 253.79 | L28: 253.79 | M28: 634.46 | O28: 375 | P28: 675 | Q28: اعدادى 2 | R28: 275 | T28: 100 | U28: 165 | V28: 85 | X28: 2 | Y28: 4 | AJ28: 10 | AK28: 4980.02 | AM28: 447.3 | AO28: 49.7 | AP28: 49.7 | AQ28: 7 | AR28: 1.7 | AT28: 76.8 | AU28: 26.6 | AW28: 2 | AX28: 4.5 | AY28: 2 | AZ28: 0.25 | BA28: 3 | BB28: 0.5 | BC28: 116.97 | BM28: 788.02 | BN28: 4192 | BO28: محمد الحايس البدراوى | BP28: ثانيه | BS28: مدرس | BT28: معلم أول | BU28: 950 | CA28: 4970.02 | CE28: 31.1 | CF28: 30.3 | CG28: 37 | CH28: 26.6 | CI28: 2
A29: اعدادى 1 | B29: شيماء رأفت محمد | C29: 258 | D29: 20 | F29: 1131.33 | G29: 24.92 | H29: 25.8 | I29: 169.7 | J29: 64.5 | K29: 129 | L29: 129 | M29: 322.5 | O29: 375 | P29: 675 | Q29: اعدادى 2 | R29: 275 | S29: 387 | T29: 100 | U29: 165 | V29: 85 | X29: 2 | Y29: 4 | AJ29: 10 | AK29: 4074.75 | AM29: 365.83 | AO29: 40.65 | AP29: 40.65 | AQ29: 7 | AR29: 1.7 | AT29: 25.8 | AU29: 22.4 | AW29: 1.5 | AX29: 4.5 | AY29: 2 | AZ29: 0.25 | BA29: 3 | BB29: 0.5 | BC29: 79.19 | BL29: 0.03 | BM29: 595 | BN29: 3479.75 | BO29: شيماء رأفت محمد | BP29: ثانيه | BS29: مدرس | BT29: معلم أول | BU29: 950 | CA29: =SUM(F29:AI29) -> 4064.75 | CE29: 25.75 | CF29: 24.95 | CG29: 30.2 | CH29: 22.4 | CI29: 1.5
A30: اعدادى 1 | B30: شهيره السعيد عبدالغنى | C30: 262 | D30: 21 | F30: 1166.61 | G30: 25.32 | H30: 26.2 | I30: 174.99 | J30: 65.5 | K30: 131 | L30: 131 | M30: 327.5 | O30: 375 | P30: 675 | Q30: اعدادى 2 | R30: 275 | S30: 336 | T30: 100 | U30: 165 | V30: 85 | X30: 2 | Y30: 4 | AJ30: 10 | AK30: 4075.12 | AM30: 365.86 | AO30: 40.65 | AP30: 40.65 | AQ30: 7 | AR30: 1.7 | AT30: 25.8 | AU30: 22.25 | AW30: 1.5 | AX30: 4.5 | AY30: 2 | AZ30: 0.25 | BA30: 3 | BB30: 0.5 | BC30: 81.66 | BM30: 597.32 | BN30: 3477.8 | BO30: شهيره السعيد عبدالغنى | BP30: ثانيه | BS30: مدرس | BT30: معلم أول | BU30: 950 | CA30: 4065.12 | CE30: 25.7 | CF30: 24.95 | CG30: 30.2 | CH30: 22.25 | CI30: 1.5
A31: اعدادى 1 | B31: هبه عبدالعزيز صلاح | C31: 262 | D31: 22 | F31: 1166.61 | G31: 25.32 | H31: 26.2 | I31: 174.99 | J31: 65.5 | K31: 131 | L31: 131 | M31: 327.5 | O31: 375 | P31: 675 | Q31: اعدادى 2 | R31: 275 | S31: 336 | T31: 100 | U31: 165 | V31: 85 | X31: 2 | Y31: 4 | AJ31: 10 | AK31: 4075.12 | AM31: 365.86 | AO31: 40.65 | AP31: 40.65 | AQ31: 7 | AR31: 1.7 | AT31: 25.8 | AU31: 22.25 | AW31: 1.5 | AX31: 4.5 | AY31: 2 | AZ31: 0.25 | BA31: 3 | BB31: 0.5 | BC31: 81.66 | BM31: 597.32 | BN31: 3477.8 | BO31: هبه عبدالعزيز صلاح | BP31: ثانيه | BS31: مدرس | BT31: معلم أول | BU31: 950 | CA31: 4065.12 | CE31: 25.7 | CF31: 24.95 | CG31: 30.2 | CH31: 22.25 | CI31: 1.5
A32: اعدادى 2 | B32: ابراهيم كمال ايوب | C32: 458.32 | D32: 23 | F32: 1550.31 | G32: 42.54 | H32: 45.83 | I32: 232.55 | J32: 114.58 | K32: 114.58 | L32: 229.16 | M32: 802.06 | O32: 325 | P32: 775 | Q32: اعدادى 2 | R32: 350 | T32: 165 | U32: 145 | V32: 140 | X32: 6 | Y32: 4 | Z32: 114.58 | AJ32: 10 | AK32: 5166.19 | AM32: 464.06 | AO32: 51.56 | AP32: 51.56 | AQ32: 9 | AR32: 2.8 | AT32: 83.1 | AU32: 28 | AW32: 2 | AX32: 4.5 | AY32: 2 | AZ32: 0.25 | BA32: 3 | BB32: 0.5 | BC32: 108.52 | BJ32: 50 | BL32: 0.04 | BM32: =SUM(AL32:BL32) -> 860.89 | BN32: =AK32-BM32 -> 4305.3 | BO32: ابراهيم كمال ايوب | BP32: كبير | BS32: مدرس | BT32: معلم خبير | CA32: 5156.19
A33: اعدادى 2 | B33: نجلاء حسنى ابراهيم | C33: 417.66 | D33: 24 | F33: 1468.54 | G33: 38.75 | H33: 41.77 | I33: 220.28 | J33: 104.42 | K33: 104.42 | L33: 208.83 | M33: 626.49 | O33: 350 | P33: 775 | Q33: اعدادى 2 | R33: 325 | T33: 125 | U33: 150 | V33: 120 | X33: 2 | Y33: 4 | AJ33: 10 | AK33: 4674.5 | AM33: 419.81 | AO33: 46.65 | AP33: 46.65 | AQ33: 7.9 | AR33: 2.4 | AT33: 63.7 | AU33: 24.9 | AW33: 2 | AX33: 4.5 | AY33: 2 | AZ33: 0.25 | BA33: 3 | BB33: 0.5 | BC33: 102.8 | BL33: 0.04 | BM33: 727.1 | BN33: 3947.4 | BO33: نجلاء حسنى ابراهيم | BP33: اولى | BS33: مدرس | BT33: معلم خبير | CA33: 4664.5
A34: اعدادى 2 | B34: محمد محمد الجمل | C34: 264 | D34: 25 | F34: 1176.92 | G34: 25.52 | H34: 26.4 | I34: 176.54 | J34: 66 | K34: 132 | L34: 132 | M34: 330 | O34: 375 | P34: 675 | Q34: اعدادى 2 | R34: 275 | S34: 312.54 | T34: 100 | U34: 165 | V34: 85 | X34: 6 | Y34: 4 | AJ34: 10 | AK34: 4072.92 | AM34: 365.66 | AO34: 40.63 | AP34: 40.63 | AQ34: 7 | AR34: 1.7 | AT34: 25.1 | AU34: 22.2 | AW34: 1.5 | AX34: 4.5 | AY34: 2 | AZ34: 0.25 | BA34: 3 | BB34: 0.5 | BC34: 82.38 | BL34: 0.02 | BM34: 597.07 | BN34: 3475.85 | BO34: محمد محمد الجمل | BP34: ثانيه | BS34: مدرس | BT34: معلم أول | CA34: 4062.92
A35: اعدادى 2 | B35: سعدية السعيد عبدالغنى | C35: 258 | D35: 26 | F35: 1137.66 | G35: 24.92 | H35: 25.8 | I35: 170.65 | J35: 64.5 | K35: 129 | L35: 129 | M35: 322.5 | O35: 375 | P35: 675 | Q35: اعدادى 2 | R35: 275 | S35: 387 | T35: 100 | U35: 165 | V35: 85 | X35: 2 | Y35: 4 | AJ35: 10 | AK35: 4082.03 | AM35: 366.48 | AO35: 40.72 | AP35: 40.72 | AQ35: 7 | AR35: 1.7 | AT35: 26.1 | AU35: 22.5 | AW35: 1.5 | AX35: 4.5 | AY35: 2 | AZ35: 0.25 | BA35: 3 | BB35: 0.5 | BC35: 79.64 | BL35: 0.02 | BM35: 596.63 | BN35: 3485.4 | BO35: سعدية السعيد عبدالغنى | BP35: ثانيه | BS35: مدرس | BT35: معلم أول | CA35: 4072.03
A36: اعدادى 2 | B36: مروه عبدالعزيز بدير | C36: 258 | D36: 27 | F36: 1131.33 | G36: 24.92 | H36: 25.8 | I36: 169.7 | J36: 64.5 | K36: 129 | L36: 129 | M36: 322.5 | O36: 375 | P36: 675 | Q36: اعدادى 2 | R36: 275 | S36: 387 | T36: 100 | U36: 165 | V36: 85 | X36: 2 | Y36: 4 | AJ36: 10 | AK36: 4074.75 | AM36: 365.83 | AO36: 40.65 | AP36: 40.65 | AQ36: 7 | AR36: 1.7 | AT36: 25.8 | AU36: 22.5 | AW36: 1.5 | AX36: 4.5 | AY36: 2 | AZ36: 0.25 | BA36: 3 | BB36: 0.5 | BC36: 79.19 | BL36: 0.03 | BM36: 595.1 | BN36: 3479.65 | BO36: مروه عبدالعزيز بدير | BP36: ثانيه | BS36: مدرس | BT36: معلم أول | CA36: 4064.75
A37: اعدادى 2 | B37: نعمه محمد يونس | C37: 258 | D37: 28 | F37: 1131.33 | G37: 24.92 | H37: 25.8 | I37: 169.7 | J37: 64.5 | K37: 129 | L37: 129 | M37: 322.5 | O37: 375 | P37: 675 | Q37: اعدادى 2 | R37: 275 | S37: 387 | T37: 100 | U37: 165 | V37: 85 | X37: 2 | Y37: 4 | AJ37: 10 | AK37: 4074.75 | AM37: 365.83 | AO37: 40.65 | AP37: 40.65 | AQ37: 7 | AR37: 1.7 | AT37: 25.8 | AU37: 22.5 | AW37: 1.5 | AX37: 4.5 | AY37: 2 | AZ37: 0.25 | BA37: 3 | BB37: 0.5 | BC37: 79.19 | BL37: 0.03 | BM37: 595.1 | BN37: 3479.65 | BO37: نعمه محمد يونس | BP37: ثانيه | BS37: مدرس | BT37: معلم أول | CA37: 4064.75
A38: اعدادى 2 | B38: امل عبد النبى النجار | C38: 246 | D38: 29 | F38: 1046.36 | G38: 24.12 | H38: 24.6 | I38: 156.95 | J38: 61.5 | K38: 123 | L38: 123 | M38: 307.5 | N38: 40 | O38: 375 | P38: 625 | Q38: ثانوى | R38: 275 | S38: 191 | T38: 100 | U38: 165 | V38: 85 | X38: 2 | Y38: 4 | AJ38: 10 | AK38: 3739.03 | AM38: 335.61 | AO38: 37.29 | AP38: 37.29 | AQ38: 7 | AR38: 1.7 | AT38: 16.7 | AU38: 20.4 | AW38: 1.5 | AX38: 4.5 | AY38: 2 | AZ38: 0.25 | BA38: 3 | BB38: 0.5 | BC38: 73.25 | BL38: 0.04 | BM38: 541.03 | BN38: 3198 | BO38: امل عبد النبى النجار | BP38: ثانيه | BS38: مدرس | BT38: معلم أول | CA38: 3729.03
A39: اعدادى 2 | B39: اميره مصطفى السيد | C39: 250 | D39: 30 | F39: 1077.32 | G39: 24.12 | H39: 25 | I39: 161.6 | J39: 62.5 | K39: 125 | L39: 125 | M39: 312.5 | O39: 375 | P39: 625 | Q39: ثانوى | R39: 275 | S39: 150 | T39: 100 | U39: 165 | V39: 85 | X39: 2 | Y39: 4 | Z39: 62.5 | AJ39: 10 | AK39: 3766.54 | AM39: 338.09 | AO39: 37.57 | AP39: 37.57 | AQ39: 7 | AR39: 1.7 | AT39: 17.3 | AU39: 20.45 | AW39: 1.5 | AX39: 4.5 | AY39: 2 | AZ39: 0.25 | BA39: 3 | BB39: 0.5 | BC39: 75.41 | BM39: 546.84 | BN39: 3219.7 | BO39: اميره مصطفى السيد | BP39: ثانيه | BS39: مدرس | CA39: 3756.54
A40: اعدادى 2 | B40: رباب محمود النجار | C40: 246 | D40: 31 | F40: 1046.63 | G40: 24.12 | H40: 24.6 | I40: 156.99 | J40: 61.5 | K40: 123 | L40: 123 | M40: 307.5 | O40: 375 | P40: 625 | Q40: ثانوى | R40: 275 | S40: 191 | T40: 100 | U40: 165 | V40: 85 | X40: 2 | Y40: 4 | AJ40: 10 | AK40: 3699.34 | AM40: 332.04 | AO40: 36.89 | AP40: 36.89 | AQ40: 7 | AR40: 1.7 | AT40: 15.7 | AU40: 20.1 | AW40: 1.5 | AX40: 4.5 | AY40: 2 | AZ40: 0.25 | BA40: 3 | BB40: 0.5 | BC40: 73.26 | BL40: 0.01 | BM40: 535.34 | BN40: 3164 | BO40: رباب محمود النجار | BP40: ثانيه | BS40: مدرس | CA40: 3689.34
A41: اعدادى 2 | B41: مروى ناجى سليمان | C41: 246 | D41: 32 | F41: 1029.85 | G41: 4.8 | H41: 4.8 | I41: 154.48 | J41: 61.5 | K41: 184.5 | L41: 123 | M41: 246 | O41: 400 | P41: 575 | Q41: ثانوى | R41: 225 | S41: 252 | T41: 75 | U41: 185 | V41: 65 | X41: 2 | Y41: 4 | AJ41: 10 | AK41: 3601.93 | AM41: 323.27 | AO41: 35.92 | AP41: 35.92 | AQ41: 6.5 | AR41: 1.3 | AT41: 14.4 | AU41: 19.8 | AW41: 1.5 | AX41: 4.5 | AY41: 2 | AZ41: 0.25 | BA41: 3 | BB41: 0.5 | BC41: 72.09 | BL41: 0.03 | BM41: 520.98 | BN41: 3080.95 | BO41: مروى ناجى سليمان | BP41: ثالثه | BS41: مدرس | CA41: 3591.93
A42: اعدادى 2 | B42: مروه حمدى عزالعرب | C42: 249 | D42: 33 | F42: 1043.78 | G42: 24.12 | H42: 24.9 | I42: 156.57 | J42: 62.25 | K42: 186.75 | L42: 124.5 | O42: 400 | P42: 575 | Q42: ثانوى | R42: 225 | S42: 572 | T42: 75 | U42: 185 | V42: 65 | X42: 2 | Y42: 4 | AJ42: 10 | AK42: 3735.87 | AM42: 335.33 | AO42: 37.26 | AP42: 37.26 | AQ42: 6.5 | AR42: 1.3 | AT42: 30 | AU42: 23.85 | AW42: 2 | AX42: 4.5 | AY42: 2 | AZ42: 0.25 | BA42: 3 | BB42: 0.5 | BC42: 73.06 | BL42: 0.03 | BM42: 556.84 | BN42: 3179.03 | BO42: مروه حمدى عزالعرب | BP42: ثالثه | BS42: مدرس | CA42: 3725.87
A43: اعدادى 2 | B43: حامد ابوبكر شلبى | C43: 246 | D43: 34 | F43: 1006.15 | G43: 4.8 | H43: 4.8 | I43: 150.92 | J43: 61.5 | L43: 123 | M43: 246 | O43: 400 | P43: 575 | Q43: ثانوى | R43: 225 | S43: 153 | T43: 75 | U43: 185 | V43: 65 | X43: 6 | Y43: 4 | AJ43: 10 | AK43: 3295.17 | AM43: 295.67 | AO43: 32.85 | AP43: 32.85 | AQ43: 6.5 | AR43: 1.3 | AU43: 14.65 | AW43: 1 | AX43: 4.5 | AY43: 2 | AZ43: 0.25 | BA43: 3 | BB43: 0.5 | BC43: 70.43 | BL43: 0.02 | BM43: 465.52 | BN43: 2829.65 | BO43: حامد ابوبكر شلبى | BP43: ثالثه | BS43: مدرس | CA43: 3285.17
A44: اعدادى 2 | B44: ناديه مسعد محمود | D44: 35 | I44: 0 | P44: 775 | Q44: ثانوى | R44: 325 | W44: 85 | AB44: 2852.14 | AC44: 303.41 | AE44: 228.17 | AF44: 64.44 | AK44: 4633.16 | AM44: 416.98 | AO44: 46.33 | AP44: 46.33 | AQ44: 5 | AT44: 31.9 | AU44: 29.65 | AW44: 2 | BL44: 0.02 | BM44: 578.21 | BN44: 4054.95 | BO44: ناديه مسعد محمود | BP44: اولى | CA44: 4633.16
A45: اعدادى 2 | B45: فاطمه فتح الله عبداللطيف | D45: 36 | I45: 0 | P45: 675 | Q45: ثانوى | R45: 275 | W45: 65 | AB45: 2382.14 | AC45: 234.72 | AE45: 190.57 | AF45: 48.89 | AK45: 3871.32 | AM45: 348.42 | AO45: 38.71 | AP45: 38.71 | AQ45: 5 | AT45: 22.5 | AU45: 24.8 | AW45: 1.5 | BL45: 0.03 | BM45: 479.67 | BN45: 3391.65 | BO45: فاطمه فتح الله عبداللطيف | BP45: ثانيه | CA45: 3871.32
A46: اعدادى 2 | B46: ممدوح عبدالواحد عبدالعزيز | D46: 37 | I46: 0 | P46: 575 | Q46: ثانوى | R46: 225 | W46: 55 | AB46: 2473.98 | AC46: 247.52 | AE46: 197.92 | AF46: 53.33 | AK46: 3827.75 | AM46: 344.5 | AO46: 38.28 | AP46: 38.28 | AQ46: 5 | AT46: 22.5 | AU46: 24.8 | AW46: 1.5 | BL46: 0.04 | BM46: 474.9 | BN46: 3352.85 | BO46: ممدوح عبدالواحد عبدالعزيز | BP46: ثالثه | CA46: 3827.75
A47: اعدادى 2 | B47: احمد ابراهيم الغريب | D47: 38 | I47: 0 | P47: 575 | Q47: ثانوى | R47: 225 | S47: 479 | W47: 55 | AB47: 1675.64 | AC47: 140.4 | AD47: 100 | AE47: 134.05 | AF47: 27.78 | AK47: 3411.87 | AM47: 307.07 | AO47: 34.12 | AP47: 34.12 | AQ47: 5 | AT47: 9.5 | AU47: 20.55 | AW47: 1.5 | BL47: 0.01 | BM47: 411.87 | BN47: 3000 | BO47: احمد ابراهيم الغريب | BP47: ثالثه | CA47: 3411.87
A48: اعدادى 2 | B48: اسماعيل عبدالمجيد سراج الدين | D48: 39 | I48: 0 | P48: 575 | Q48: ثانوى | R48: 225 | S48: 479 | W48: 55 | AB48: 1675.64 | AC48: 140.4 | AD48: 100 | AE48: 134.05 | AF48: 27.78 | AK48: 3411.87 | AM48: 307.07 | AO48: 34.12 | AP48: 34.12 | AQ48: 5 | AT48: 7.2 | AU48: 20.55 | AV48: 70 | AW48: 1.5 | BL48: 0.01 | BM48: 479.57 | BN48: 2932.3 | BO48: اسماعيل عبدالمجيد سراج الدين | BP48: ثالثه | CA48: 3411.87
A49: اعدادى 2 | B49: السعيد احمد السعيد | D49: 40 | I49: 0 | P49: 475 | Q49: ثانوى | R49: 175 | S49: 180 | W49: 50 | AB49: 1595.64 | AC49: 132.57 | AD49: 100 | AE49: 127.65 | AF49: 26.67 | AK49: 2862.53 | AM49: 257.63 | AO49: 28.63 | AP49: 28.63 | AQ49: 5 | AU49: 17.9 | AW49: 1.5 | BL49: 0.04 | BM49: 339.33 | BN49: 2523.2 | BO49: السعيد احمد السعيد | BP49: خامسه | CA49: 2862.53
A50: ثانوى | B50: علاء عبدالكريم محمود | C50: 643.19 | D50: 41 | F50: 2003.34 | G50: 60.43 | H50: 64.32 | I50: 300.5 | J50: 160.8 | K50: 160.8 | L50: 321.6 | M50: 1286.36 | O50: 300 | P50: 875 | Q50: ثانوى | R50: 375 | T50: 180 | U50: 140 | V50: 155 | X50: 6 | Y50: 4 | AA50: 250 | AJ50: 10 | AK50: 6653.15 | AM50: 597.88 | AO50: 66.43 | AP50: 66.43 | AQ50: 9.5 | AR50: 3.1 | AT50: 158 | AU50: 34.95 | AW50: 3 | AX50: 4.5 | AY50: 2 | AZ50: 0.25 | BA50: 3 | BB50: 0.5 | BC50: 140.23 | BL50: 0.03 | BM50: 1089.8 | BN50: 5563.35 | BO50: علاء عبدالكريم محمود | BP50: كبير ا | BS50: مدرس | CA50: 6643.15
A51: ثانوى | B51: أرزاق طلعت أحمد عبد الله | C51: 657.44 | D51: 42 | F51: 2036.89 | G51: 61.78 | H51: 65.74 | I51: 305.53 | J51: 164.36 | K51: 164.36 | L51: 328.72 | M51: 1314.88 | O51: 300 | P51: 875 | R51: 375 | T51: 180 | U51: 140 | V51: 155 | X51: 2 | Y51: 4 | AJ51: 10 | AK51: 6483.26 | AM51: 582.59 | AO51: 64.73 | AP51: 64.73 | AQ51: 9.5 | AR51: 3.1 | AT51: 161 | AU51: 35.4 | AW51: 2.5 | AX51: 4.5 | AY51: 2 | AZ51: 0.25 | BA51: 3 | BB51: 0.5 | BC51: 142.58 | BL51: 0.03 | BM51: 1076.41 | BN51: 5406.85 | BO51: أرزاق طلعت أحمد عبد الله | BP51: كبير ا | BS51: مدرس | CA51: 6473.26
A52: ثانوى | B52: محمد سعد السعداوى | C52: 576.69 | D52: 43 | F52: 1821.07 | G52: 53.6 | H52: 57.67 | I52: 273.16 | J52: 144.17 | K52: 144.17 | L52: 288.35 | M52: 1153.37 | O52: 300 | P52: 850 | R52: 375 | T52: 180 | U52: 140 | V52: 155 | X52: 6 | Y52: 4 | AA52: 150 | AJ52: 10 | AK52: 6105.56 | AM52: 548.6 | AO52: 60.96 | AP52: 60.96 | AQ52: 9.5 | AR52: 3.1 | AT52: 136 | AU52: 32.5 | AW52: 2.5 | AX52: 4.5 | AY52: 2 | AZ52: 0.25 | BA52: 3 | BB52: 0.5 | BC52: 127.47 | BL52: 0.02 | BM52: 991.86 | BN52: 5113.7 | BO52: محمد سعد السعداوى | BP52: كبير ا | BS52: مدرس | CA52: 6095.56
A53: ثانوى | B53: احمد فتحى امام | C53: 462.97 | D53: 44 | F53: 1563.14 | G53: 43.01 | H53: 46.3 | I53: 234.47 | J53: 115.74 | K53: 115.74 | L53: 231.49 | M53: 810.19 | O53: 325 | P53: 800 | R53: 350 | T53: 165 | U53: 145 | V53: 140 | X53: 6 | Y53: 4 | AJ53: 10 | AK53: 5105.08 | AM53: 458.56 | AO53: 50.95 | AP53: 50.95 | AQ53: 9 | AR53: 2.8 | AT53: 80.2 | AU53: 27.5 | AW53: 2 | AX53: 4.5 | AY53: 2 | AZ53: 0.25 | BA53: 3 | BB53: 0.5 | BC53: 109.42 | BM53: 801.63 | BN53: 4303.45 | BO53: احمد فتحى امام | BP53: كبير | BS53: مدرس | CA53: 5095.08
A54: ثانوى | B54: ابراهيم العرابي زرق احمد | C54: 654.98 | D54: 45 | F54: 2036.92 | G54: 61.59 | H54: 65.5 | I54: 305.54 | J54: 163.75 | K54: 163.75 | L54: 327.49 | M54: 1146.21 | O54: 325 | P54: 825 | R54: 350 | T54: 165 | U54: 145 | V54: 140 | X54: 6 | Y54: 4 | AJ54: 10 | AK54: 6240.75 | AM54: 560.77 | AO54: 62.31 | AP54: 62.31 | AQ54: 9 | AR54: 2.8 | AT54: 150 | AU54: 33.75 | AW54: 2.5 | AX54: 4.5 | AY54: 2 | AZ54: 0.25 | BA54: 3 | BB54: 0.5 | BC54: 142.58 | BL54: 0.03 | BM54: 1036.3 | BN54: 5204.45 | BO54: ابراهيم العرابي زرق احمد | BP54: كبير | BS54: مدرس | CA54: 6230.75
A55: ثانوى | B55: محمد العرابى رزق | C55: 545.65 | D55: 46 | F55: 1768.31 | G55: 51.39 | H55: 54.57 | I55: 265.25 | J55: 136.41 | K55: 136.41 | L55: 272.83 | M55: 954.87 | O55: 325 | P55: 825 | R55: 350 | T55: 165 | U55: 145 | V55: 140 | X55: 6 | Y55: 4 | AJ55: 10 | AK55: 5610.04 | AM55: 504 | AO55: 56 | AP55: 56 | AQ55: 9 | AR55: 2.8 | AT55: 119 | AU55: 30.55 | AW55: 2 | AX55: 4.5 | AY55: 2 | AZ55: 0.25 | BA55: 3 | BB55: 0.5 | BC55: 123.78 | BL55: 0.01 | BM55: 913.39 | BN55: 4696.65 | BO55: محمد العرابى رزق | BP55: كبير | BS55: مدرس | CA55: 5600.04
A56: ثانوى | B56: حامد عبدالرحمن عاصى | C56: 526.62 | D56: 47 | F56: 1712.32 | G56: 49.48 | H56: 52.66 | I56: 256.85 | J56: 131.66 | K56: 131.66 | L56: 263.31 | M56: 921.58 | O56: 325 | P56: 800 | R56: 350 | T56: 165 | U56: 145 | V56: 140 | X56: 6 | Y56: 4 | AJ56: 10 | AK56: 5464.52 | AM56: 490.91 | AO56: 54.55 | AP56: 54.55 | AQ56: 7.9 | AR56: 2.8 | AT56: 109 | AU56: 29.1 | AW56: 2 | AX56: 4.5 | AY56: 2 | AZ56: 0.25 | BA56: 3 | BB56: 0.5 | BC56: 119.86 | BM56: 880.92 | BN56: 4583.6 | BO56: حامد عبدالرحمن عاصى | BP56: كبير | BS56: مدرس | CA56: 5454.52
A57: ثانوى | B57: ممدوح احمد الغريب | C57: 592.2 | D57: 48 | F57: 1860.15 | G57: 55.65 | H57: 59.22 | I57: 279.02 | J57: 148.05 | K57: 296.1 | L57: 296.1 | M57: 740.25 | O57: 375 | P57: 675 | R57: 275 | T57: 100 | U57: 165 | V57: 85 | X57: 6 | Y57: 4 | AJ57: 10 | AK57: 5429.54 | AM57: 487.76 | AO57: 54.2 | AP57: 54.2 | AQ57: 7 | AR57: 1.7 | AT57: 112 | AU57: 29.1 | AW57: 2 | AX57: 4.5 | AY57: 2 | AZ57: 0.25 | BA57: 3 | BB57: 0.5 | BC57: 130.21 | BL57: 0.02 | BM57: 888.44 | BN57: 4541.1 | BO57: ممدوح احمد الغريب | BP57: ثانيه | BS57: مدرس | CA57: 5419.54
A58: ثانوى | B58: أم الخير المغازي محمد العزب | C58: 262 | D58: 49 | F58: 1166.61 | G58: 25.32 | H58: 26.2 | I58: 174.99 | J58: 65.5 | K58: 131 | L58: 131 | M58: 327.5 | O58: 375 | P58: 675 | R58: 275 | S58: 336 | T58: 100 | U58: 165 | V58: 85 | X58: 2 | Y58: 4 | AJ58: 10 | AK58: 4075.12 | AM58: 365.86 | AO58: 40.65 | AP58: 40.65 | AQ58: 7 | AR58: 1.7 | AT58: 25.8 | AU58: 22.35 | AW58: 1.5 | AX58: 4.5 | AY58: 2 | AZ58: 0.25 | BA58: 3 | BB58: 0.5 | BC58: 81.66 | BM58: 597.42 | BN58: 3477.7 | BO58: أم الخير المغازي محمد العزب | BP58: ثانيه | BS58: مدرس | CA58: 4065.12
A59: ثانوى | B59: نبيله محمود ابراهيم | C59: 253 | D59: 50 | F59: 1081.91 | G59: 24.42 | H59: 25.3 | I59: 162.29 | J59: 63.25 | K59: 126.5 | L59: 126.5 | M59: 316.25 | O59: 375 | P59: 625 | R59: 275 | S59: 137 | T59: 100 | U59: 165 | V59: 85 | X59: 2 | Y59: 4 | AJ59: 10 | AK59: 3704.42 | AM59: 332.5 | AO59: 36.94 | AP59: 36.94 | AQ59: 7 | AR59: 1.7 | AT59: 15.7 | AU59: 20 | AW59: 1.5 | AX59: 4.5 | AY59: 2 | AZ59: 0.25 | BA59: 3 | BB59: 0.5 | BC59: 75.73 | BL59: 0.01 | BM59: 538.27 | BN59: 3166.15 | BO59: نبيله محمود ابراهيم | BP59: ثانيه | BS59: مدرس | CA59: 3694.42
A60: ثانوى | B60: محمود مصطفى محمود | C60: 264 | D60: 51 | F60: 1141.53 | G60: 24.92 | H60: 26.4 | I60: 171.23 | J60: 66 | K60: 132 | L60: 132 | M60: 330 | O60: 375 | P60: 675 | R60: 275 | S60: 338 | T60: 100 | U60: 165 | V60: 85 | X60: 6 | Y60: 4 | AJ60: 10 | AK60: 4057.08 | AM60: 364.24 | AO60: 40.47 | AP60: 40.47 | AQ60: 7 | AR60: 1.7 | AT60: 25.4 | AU60: 22.35 | AW60: 1.5 | AX60: 4.5 | AY60: 2 | AZ60: 0.25 | BA60: 3 | BB60: 0.5 | BC60: 79.91 | BL60: 0.02 | BM60: 593.31 | BN60: 3463.77 | BO60: محمود مصطفى محمود | BP60: ثانيه | BS60: مدرس | CA60: 4047.08
A61: ثانوى | B61: لبنى عبدالرحيم يوسف العواد | C61: 246 | D61: 52 | F61: 1029.85 | G61: 4.8 | H61: 24.6 | I61: 154.48 | J61: 61.5 | K61: 184.5 | L61: 123 | M61: 246 | O61: 400 | P61: 575 | R61: 225 | S61: 248 | T61: 75 | U61: 185 | V61: 65 | X61: 2 | Y61: 4 | AJ61: 10 | AK61: 3617.73 | AM61: 324.7 | AO61: 36.08 | AP61: 36.08 | AQ61: 6.5 | AR61: 1.3 | AT61: 14.4 | AU61: 19.8 | AW61: 1.5 | AX61: 4.5 | AY61: 2 | AZ61: 0.25 | BA61: 3 | BB61: 0.5 | BC61: 72.09 | BL61: 0.02 | BM61: 522.72 | BN61: 3095.01 | BO61: لبنى عبدالرحيم يوسف العواد | BP61: ثالثه | BS61: مدرس | CA61: 3607.73
A62: ثانوى | B62: نجلاء جلال محمود | C62: 246 | D62: 53 | F62: 1029.85 | G62: 4.8 | H62: 24.6 | I62: 154.48 | J62: 61.5 | K62: 184.5 | L62: 123 | M62: 246 | O62: 400 | P62: 575 | R62: 225 | S62: 248 | T62: 75 | U62: 185 | V62: 65 | X62: 2 | Y62: 4 | AJ62: 10 | AK62: 3617.73 | AM62: 324.7 | AO62: 36.08 | AP62: 36.08 | AQ62: 6.5 | AR62: 1.3 | AT62: 14.4 | AU62: 19.8 | AW62: 1.5 | AX62: 4.5 | AY62: 2 | AZ62: 0.25 | BA62: 3 | BB62: 0.5 | BC62: 72.09 | BL62: 0.02 | BM62: 522.72 | BN62: 3095.01 | BO62: نجلاء جلال محمود | BP62: ثالثه | BS62: مدرس | CA62: 3607.73
B63: 0 | D63: 54 | I63: 0 | W63: 0 | AE63: 0 | AK63: 0 | AM63: 0 | AO63: 0 | AP63: 0 | BM63: 0 | BN63: 0 | CA63: 0
B64: 0 | D64: 55 | I64: 0 | W64: 0 | AE64: 0 | AK64: 0 | AM64: 0 | AO64: 0 | AP64: 0 | BM64: 0 | BN64: 0
B65: 0 | D65: 56 | I65: 0 | W65: 0 | AE65: 0 | AK65: 0 | AM65: 0 | AO65: 0 | AP65: 0 | BM65: 0 | BN65: 0
B66: 0 | D66: 57 | I66: 0 | W66: 0 | AE66: 0 | AK66: 0 | AM66: 0 | AO66: 0 | AP66: 0 | BM66: 0 | BN66: 0
B67: 0 | D67: 58 | G67: =C67*10% -> 0 | H67: =IF(BS67="مدرس",TRUNC(C67*10%,2),"") ->  | I67: 0 | M67: =IF(BP67="كبير ا",C67*200%,IF(BP67="كبير",C67*175%,IF(BP67="اولى",C67*150%,IF(BP67="ثانيه",C67*100%,IF(BP67="ثالثه",C67*75%,))))) -> 0 | T67: =IF(BS67="مدرس",IF(BP67="كبير ا",180,IF(BP67="كبير",165,IF(BP67="اولى",125,IF(BP67="ثانيه",100,IF(BP67="ثالثه",75,))))),"") ->  | W67: 0 | AE67: 0 | AJ67: =IF(BS67="مدرس",#REF!,"") ->  | AK67: =TRUNC(SUM(F67:AJ67),2) -> 0 | AM67: 0 | AO67: 0 | AP67: 0 | AX67: =IF($BS67="مدرس",#REF!,"") ->  | AY67: =IF($BS67="مدرس",#REF!,"") ->  | AZ67: =IF($BS67="مدرس",#REF!,"") ->  | BA67: =IF($BS67="مدرس",#REF!,"") ->  | BB67: =IF($BS67="مدرس",#REF!,"") ->  | BC67: =IF(BS67="مدرس",TRUNC(F67*7%,2),"") ->  | BM67: =SUM(AL67:BL67) -> 0 | BN67: =AK67-BM67 -> 0 | BU67: 0 | CA67: 0
D68: 59 | F68: =SUM(F10:F67) -> 69867.79 | G68: 1803.82 | H68: 1954.26 | I68: 10480.17 | J68: 4984.64 | K68: 6526.84 | L68: 9969.24 | M68: 32424.49 | N68: 40 | O68: 16300 | P68: 38675 | Q68: 0 | R68: 16250 | S68: 7360.54 | T68: 6290 | U68: 7295 | V68: 5420 | W68: 365 | X68: 174 | Y68: 188 | Z68: 350.9 | AA68: 650 | AB68: 12655.18 | AC68: 1199.02 | AD68: 300 | AE68: 1012.41 | AF68: 248.89 | AG68: 0 | AH68: 0 | AI68: 0 | AJ68: 470 | AK68: 253255.19 | AL68: =SUM(AL10:AL67) -> 0 | AM68: 22750.7 | AN68: 2.82 | AO68: 2527.87 | AP68: 2527.87 | AQ68: 409 | AR68: 108.4 | AS68: 90 | AT68: 3606 | AU68: 1393.55 | AV68: 70 | AW68: 102.5 | AX68: 211.5 | AY68: 94 | AZ68: 11.75 | BA68: 141 | BB68: 23.5 | BC68: 4890.7 | BD68: 9 | BE68: 250 | BF68: 0 | BG68: 0 | BH68: 0 | BI68: 0 | BJ68: 50 | BK68: 279.3 | BL68: 1.11 | BM68: 39550.57 | BN68: 213704.62 | BU68: 54925

Sheet اعدادى 1
AD1: أجر مكمل 5% 2022
F6: اعدادى 1 | W6: 1 | AC6: 1 | BN6: اعدادى 1
D7: مسلسل | E7: الحالة الاجتماعية | F7: المرتب الأساسى | G7: ابريل2022 | AL7: جـــــــــــــــــــــــــــــــــــــــــــــــــــــــــــــــارى ضرائـــــــــــــــــــــــــــــــــــــــــــــــــــــــب | AV7: إستحقــــــــــــــــــــــــــــاق هيئــــــــــــــــــــــــــــــــــــــــــــــــــــــــــــــــــــــــــــــات وشــــــــــــــــــــــــــــــــــــــــــــــــــــــركـــــــــــــــــــــــــــــــــــــات | BM7: جملة الاستقطاعات | BN7: صافى المقتضى صرفه | BO7: اسم الموظف | BP7: الدرجة
G8: 10% 2014 | H8: 10% 2015 | I8: 15% 2022 | J8: حافز 25% | K8: أداء | L8: كادر | M8: كادرين | N8: تطوير | O8: أعباء | P8: 2019 2020 2021 | R8: 2022 | S8: حافز تكميلى | T8: بدل تعليم | U8: حافز أداء | V8: مكافئة مدرس | W8: مكافئة ادارى | X8: اجتماعية | Y8: اضافية | Z8: حافز دمج | AA8: حافز مدير أو وكيل | AB8: الأجر الوظيفى | AC8: الأجر المكمل | AD8: أجر مكمل 5% 2022 | AE8: 8% 2022 | AF8: الحافز التعويضى | AG8: 0.915 | AH8: الحد الأدنى | AI8: دكتوراه | AJ8: المنحة | AK8: جملة المستحق | AL8: حصة الحكومة 12% | AM8: إشتراك موظف 9% | AN8: أقساط المدة السابقة | AO8: 0.01 | AP8: إدخار 1% | AQ8: 2% رعاية | AR8: 0.02 | AS8: بدل إعارة | AT8: كسب عمل | AU8: دمغة عادية | AV8: قسط شريحة | AW8: صندوق الشهداء | AX8: نقابة مهن تعليمية | AY8: رعاية صحية | AZ8: تأمين اجتماعى | BA8: نادى معلمين | BB8: رابطة جامعيين | BC8: صندوق زمالة | BD8: مهن تطبيقية | BE8: نقابة مهن تعليمية | BF8: لجنة نقابة | BG8: صندوق زمالة | BH8: بحث علمى | BI8: مهن زراعية | BJ8: مهن اجتماعية | BK8: استبعاد حافز أداء | BL8: كسر القرش
AJ9: 10 | AX9: 4.5 | AY9: 2 | AZ9: 0.25 | BA9: 3 | BB9: 0.5 | BE9: قرض
F68: =SUM(F10:F67) -> 0 | G68: 0 | H68: 0 | I68: 0 | J68: 0 | K68: 0 | L68: 0 | M68: 0 | N68: 0 | O68: 0 | P68: 0 | Q68: 0 | R68: 0 | S68: 0 | T68: 0 | U68: 0 | V68: 0 | W68: 0 | X68: 0 | Y68: 0 | Z68: 0 | AA68: 0 | AB68: 0 | AC68: 0 | AD68: 0 | AE68: 0 | AF68: 0 | AG68: 0 | AH68: 0 | AI68: 0 | AJ68: 0 | AK68: 0 | AL68: 0 | AM68: 0 | AN68: 0 | AO68: 0 | AP68: 0 | AQ68: 0 | AR68: 0 | AS68: 0 | AT68: 0 | AU68: 0 | AV68: 0 | AW68: 0 | AX68: 0 | AY68: 0 | AZ68: 0 | BA68: 0 | BB68: 0 | BC68: 0 | BD68: 0 | BE68: 0 | BF68: 0 | BG68: 0 | BH68: 0 | BI68: 0 | BJ68: 0 | BK68: 0 | BL68: 0 | BM68: 0 | BN68: 0

Sheet اعدادى 2
AD1: أجر مكمل 5% 2022
F6: اعدادى 2 | W6: 1 | AC6: 1 | BN6: =F6 -> اعدادى 2
D7: مسلسل | E7: الحالة الاجتماعية | F7: المرتب الأساسى | G7: ابريل2022 | AL7: جـــــــــــــــــــــــــــــــــــــــــــــــــــــــــــــــارى ضرائـــــــــــــــــــــــــــــــــــــــــــــــــــــــب | AV7: إستحقــــــــــــــــــــــــــــاق هيئــــــــــــــــــــــــــــــــــــــــــــــــــــــــــــــــــــــــــــــات وشــــــــــــــــــــــــــــــــــــــــــــــــــــــركـــــــــــــــــــــــــــــــــــــات | BM7: جملة الاستقطاعات | BN7: صافى المقتضى صرفه | BO7: اسم الموظف | BP7: الدرجة
G8: 10% 2014 | H8: 10% 2015 | I8: 15% 2022 | J8: حافز 25% | K8: أداء | L8: كادر | M8: كادرين | N8: تطوير | O8: أعباء | P8: 2019 2020 2021 | R8: 2022 | S8: حافز تكميلى | T8: بدل تعليم | U8: حافز أداء | V8: مكافئة مدرس | W8: مكافئة ادارى | X8: اجتماعية | Y8: اضافية | Z8: حافز دمج | AA8: حافز مدير أو وكيل | AB8: الأجر الوظيفى | AC8: الأجر المكمل | AD8: أجر مكمل 5% 2022 | AE8: 8% 2022 | AF8: الحافز التعويضى | AG8: 0.915 | AH8: الحد الأدنى | AI8: دكتوراه | AJ8: المنحة | AK8: جملة المستحق | AL8: حصة الحكومة 12% | AM8: إشتراك موظف 9% | AN8: أقساط المدة السابقة | AO8: 0.01 | AP8: إدخار 1% | AQ8: 2% رعاية | AR8: 0.02 | AS8: بدل إعارة | AT8: كسب عمل | AU8: دمغة عادية | AV8: قسط شريحة | AW8: صندوق الشهداء | AX8: نقابة مهن تعليمية | AY8: رعاية صحية | AZ8: تأمين اجتماعى | BA8: نادى معلمين | BB8: رابطة جامعيين | BC8: صندوق زمالة | BD8: مهن تطبيقية | BE8: نقابة مهن تعليمية | BF8: لجنة نقابة | BG8: صندوق زمالة | BH8: بحث علمى | BI8: مهن زراعية | BJ8: مهن اجتماعية | BK8: استبعاد حافز أداء | BL8: كسر القرش
AJ9: 10 | AX9: 4.5 | AY9: 2 | AZ9: 0.25 | BA9: 3 | BB9: 0.5 | BE9: قرض
F68: =SUM(F10:F67) -> 0 | G68: 0 | H68: 0 | I68: 0 | J68: 0 | K68: 0 | L68: 0 | M68: 0 | N68: 0 | O68: 0 | P68: 0 | Q68: 0 | R68: 0 | S68: 0 | T68: 0 | U68: 0 | V68: 0 | W68: 0 | X68: 0 | Y68: 0 | Z68: 0 | AA68: 0 | AB68: 0 | AC68: 0 | AD68: 0 | AE68: 0 | AF68: 0 | AG68: 0 | AH68: 0 | AI68: 0 | AJ68: 0 | AK68: 0 | AL68: 0 | AM68: 0 | AN68: 0 | AO68: 0 | AP68: 0 | AQ68: 0 | AR68: 0 | AS68: 0 | AT68: 0 | AU68: 0 | AV68: 0 | AW68: 0 | AX68: 0 | AY68: 0 | AZ68: 0 | BA68: 0 | BB68: 0 | BC68: 0 | BD68: 0 | BE68: 0 | BF68: 0 | BG68: 0 | BH68: 0 | BI68: 0 | BJ68: 0 | BK68: 0 | BL68: 0 | BM68: 0 | BN68: 0

Sheet ثانوى
AD1: أجر مكمل 5% 2022
F6: ثانوى | W6: 1 | AC6: 1 | BN6: =F6 -> ثانوى
D7: مسلسل | E7: الحالة الاجتماعية | F7: المرتب الأساسى | G7: ابريل2022 | AL7: جـــــــــــــــــــــــــــــــــــــــــــــــــــــــــــــــارى ضرائـــــــــــــــــــــــــــــــــــــــــــــــــــــــب | AV7: إستحقــــــــــــــــــــــــــــاق هيئــــــــــــــــــــــــــــــــــــــــــــــــــــــــــــــــــــــــــــــات وشــــــــــــــــــــــــــــــــــــــــــــــــــــــركـــــــــــــــــــــــــــــــــــــات | BM7: جملة الاستقطاعات | BN7: صافى المقتضى صرفه | BO7: اسم الموظف | BP7: الدرجة
G8: 10% 2014 | H8: 10% 2015 | I8: 15% 2022 | J8: حافز 25% | K8: أداء | L8: كادر | M8: كادرين | N8: تطوير | O8: أعباء | P8: 2019 2020 2021 | R8: 2022 | S8: حافز تكميلى | T8: بدل تعليم | U8: حافز أداء | V8: مكافئة مدرس | W8: مكافئة ادارى | X8: اجتماعية | Y8: اضافية | Z8: حافز دمج | AA8: حافز مدير أو وكيل | AB8: الأجر الوظيفى | AC8: الأجر المكمل | AD8: أجر مكمل 5% 2022 | AE8: 8% 2022 | AF8: الحافز التعويضى | AG8: 0.915 | AH8: الحد الأدنى | AI8: دكتوراه | AJ8: المنحة | AK8: جملة المستحق | AL8: حصة الحكومة 12% | AM8: إشتراك موظف 9% | AN8: أقساط المدة السابقة | AO8: 0.01 | AP8: إدخار 1% | AQ8: 2% رعاية | AR8: 0.02 | AS8: بدل إعارة | AT8: كسب عمل | AU8: دمغة عادية | AV8: قسط شريحة | AW8: صندوق الشهداء | AX8: نقابة مهن تعليمية | AY8: رعاية صحية | AZ8: تأمين اجتماعى | BA8: نادى معلمين | BB8: رابطة جامعيين | BC8: صندوق زمالة | BD8: مهن تطبيقية | BE8: نقابة مهن تعليمية | BF8: لجنة نقابة | BG8: صندوق زمالة | BH8: بحث علمى | BI8: مهن زراعية | BJ8: مهن اجتماعية | BK8: استبعاد حافز أداء | BL8: كسر القرش
AJ9: 10 | AX9: 4.5 | AY9: 2 | AZ9: 0.25 | BA9: 3 | BB9: 0.5 | BE9: قرض
F68: =SUM(F10:F67) -> 0 | G68: 0 | H68: 0 | I68: 0 | J68: 0 | K68: 0 | L68: 0 | M68: 0 | N68: 0 | O68: 0 | P68: 0 | Q68: 0 | R68: 0 | S68: 0 | T68: 0 | U68: 0 | V68: 0 | W68: 0 | X68: 0 | Y68: 0 | Z68: 0 | AA68: 0 | AB68: 0 | AC68: 0 | AD68: 0 | AE68: 0 | AF68: 0 | AG68: 0 | AH68: 0 | AI68: 0 | AJ68: 0 | AK68: 0 | AL68: 0 | AM68: 0 | AN68: 0 | AO68: 0 | AP68: 0 | AQ68: 0 | AR68: 0 | AS68: 0 | AT68: 0 | AU68: 0 | AV68: 0 | AW68: 0 | AX68: 0 | AY68: 0 | AZ68: 0 | BA68: 0 | BB68: 0 | BC68: 0 | BD68: 0 | BE68: 0 | BF68: 0 | BG68: 0 | BH68: 0 | BI68: 0 | BJ68: 0 | BK68: 0 | BL68: 0 | BM68: 0 | BN68: 0

Sheet بنك
A5: 1 | B5: 2 | C5: 3 | D5: 4 | E5: 5 | F5: 6 | G5: 7 | H5: 8 | J5: 9 | K5: 10 | L5: 11 | M5: 12 | N5: 13 | O5: 14 | P5: 15 | Q5: 16 | R5: 17 | S5: 18 | T5: 19 | U5: 20 | V5: 21 | W5: 22 | X5: 23 | Y5: 24 | Z5: 25 | AB5: 26 | AC5: 27 | AF5: 28 | AG5: 29 | AH5: 30 | AI5: 31 | AJ5: 32 | AK5: 33 | AL5: 34 | AM5: 35 | AN5: 36 | AO5: 37 | AP5: 38 | AQ5: 39 | AR5: 40 | AS5: 41 | AT5: 42 | AU5: 43 | AV5: 44 | AW5: 45 | AX5: 46 | AY5: 47 | AZ5: 48 | BA5: 49 | BB5: 50 | BC5: 51 | BD5: 52 | BE5: 53 | BF5: 54 | BG5: 55 | BH5: 56 | BI5: 57 | BJ5: 58 | BK5: 59 | BL5: 60 | BM5: 61 | BN5: 62 | BO5: 63 | BP5: 64 | BQ5: 65 | BS5: 66 | BT5: 67 | BU5: 68 | BV5: 69 | BW5: 70 | BX5: 71 | BY5: 72
F6: بنك | BN6: بنك
D7: مسلسل | E7: الحالة الاجتماعية | F7: المرتب الأساسى | G7: =بيانات!G7 -> ابريل2022 | AL7: جـــــــــــــــــــــــــــــــــــــــــــــــــــــــــــــــارى ضرائـــــــــــــــــــــــــــــــــــــــــــــــــــــــب | AV7: إستحقــــــــــــــــــــــــــــاق هيئــــــــــــــــــــــــــــــــــــــــــــــــــــــــــــــــــــــــــــــات وشــــــــــــــــــــــــــــــــــــــــــــــــــــــركـــــــــــــــــــــــــــــــــــــات | BM7: جملة الاستقطاعات | BN7: صافى المقتضى صرفه | BO7: اسم الموظف | BP7: الدرجة | BQ7: اسم البنك
C8: اساسى 2014 | G8: 10% 2014 | H8: 10% 2015 | I8: 15% 2022 | J8: حافز 25% | K8: أداء | L8: كادر | M8: كادرين | N8: تطوير | O8: أعباء | P8: 2019 2020 2021 | R8: 2022 | S8: حافز تكميلى | T8: بدل تعليم | U8: حافز أداء | V8: مكافئة مدرس | W8: مكافئة إدارى | X8: اجتماعية | Y8: اضافية | Z8: حافز دمج | AA8: حافز مدير وكيل | AB8: الأجر الوظيفى | AC8: الأجر المكمل | AD8: أجر مكمل 5% 2022 | AE8: 8% 2022 | AF8: الحافز التعويضى | AG8: 0.915 | AH8: الحد الأدنى | AI8: دكتوراه | AJ8: المنحة | AK8: جملة المبالغ المستحقة | AL8: حصة الحكومة 12% | AM8: إشتراك موظف 9% | AN8: أقساط المدة السابقة | AO8: 0.01 | AP8: إدخار 1% | AQ8: 2% رعاية | AR8: 0.02 | AS8: بدل إعارة | AT8: كسب عمل | AU8: دمغة عادية | AV8: قسط شريحة | AW8: صندوق الشهداء | AX8: نقابة مهن تعليمية | AY8: رعاية صحية | AZ8: تأمين اجتماعى | BA8: نادى معلمين | BB8: رابطة جامعيين | BC8: صندوق زمالة | BD8: مهن تطبيقية | BE8: نقابة مهن تعليمية | BF8: لجنة نقابة | BG8: صندوق زمالة | BH8: بحث علمى | BI8: مهن زراعية | BJ8: جزاءات | BK8: مهن اجتماعية | BL8: كسر القرش | BU8: مقطوعة مجمعة
AJ9: 10 | AQ9: 5 | AX9: 4.5 | AY9: 2 | AZ9: 0.25 | BA9: 3 | BB9: 0.5 | BE9: قرض
B10: =BO10 -> حمدى طه العيسوى | C10: 747.84 | D10: 1 | F10: 2299.91 | G10: 70.24 | H10: =IF(BS10="مدرس",ROUND(C10*10%,2),"") -> 74.78 | I10: =ROUND(F10*15%,2) -> 344.99 | J10: =IF(BS10="مدرس",ROUND(C10*25%,2),"") -> 186.96 | K10: =IF(BS10="مدرس",IF(BP10="كبير",ROUND(C10*25%,2),IF(BP10="كبير ا",ROUND(C10*25%,2),IF(BP10="اولى",ROUND(C10*25%,2),IF(BP10="ثانيه",ROUND(C10*50%,2),IF(BP10="ثالثه",ROUND(C10*75%,2),IF(BP10="م م",ROUND(C10*125%,2))))))),"") -> 186.96 | L10: =IF(BS10="مدرس",ROUND(C10*50%,2),"") -> 373.92 | M10: 1495.68 | O10: 300 | P10: 875 | R10: 375 | T10: 180 | U10: =IF(BS10="مدرس",IF(BP10="كبير ا",140,IF(BP10="كبير",145,IF(BP10="اولى",150,IF(BP10="ثانيه",165,IF(BP10="ثالثه",185,))))),"") -> 140 | V10: 155 | X10: 6 | Y10: 4 | AA10: 150 | AE10: =IF(BS10="مدرس","",ROUND(AB10*8%,2)) ->  | AJ10: =IF(BS10="مدرس",$AJ$9,"") -> 10 | AK10: =SUM(F10:AJ10) -> 7228.44 | AM10: =ROUND(CA10*9%,2) -> 649.66 | AO10: =ROUND(CA10*1%,2) -> 72.18 | AP10: =ROUND(CA10*1%,2) -> 72.18 | AQ10: 9.5 | AR10: =IF(BS10="مدرس",IF(BP10="كبير ا",3.1,IF(BP10="كبير",2.8,IF(BP10="اولى",2.4,IF(BP10="ثانيه",1.7,IF(BP10="ثالثه",1.3,))))),"") -> 3.1 | AT10: 177 | AU10: 41.15 | AW10: 3 | AX10: =IF($BS10="مدرس",$AX$9,"") -> 4.5 | AY10: =IF($BS10="مدرس",$AY$9,"") -> 2 | AZ10: =IF($BS10="مدرس",$AZ$9,"") -> 0.25 | BA10: =IF($BS10="مدرس",$BA$9,"") -> 3 | BB10: =IF($BS10="مدرس",$BB$9,"") -> 0.5 | BC10: =IF(BS10="مدرس",ROUND(F10*7%,2),"") -> 160.99 | BL10: 0.03 | BM10: =SUM(AL10:BL10) -> 1199.04 | BN10: =AK10-BM10 -> 6029.4 | BO10: حمدى طه العيسوى | BP10: كبير ا | BQ10: البنك التجارى الدولى | BS10: مدرس | BX10: كبير ا | CA10: =SUM(F10:AI10) -> 7218.44 | CI10: =IF(BN10>5500,"3",IF(BN10>4500,"2.5",IF(BN10>3500,"2",IF(BN10>2500,"1.5",IF(BN10>1500,1))))) -> 3
B11: =BO11 -> السعيد عبد النبي السيد علي | C11: 579.83 | D11: 2 | F11: 1829.42 | G11: 53.9 | H11: =IF(BS11="مدرس",ROUND(C11*10%,2),"") -> 57.98 | I11: =ROUND(F11*15%,2) -> 274.41 | J11: =IF(BS11="مدرس",ROUND(C11*25%,2),"") -> 144.96 | K11: =IF(BS11="مدرس",IF(BP11="كبير",ROUND(C11*25%,2),IF(BP11="كبير ا",ROUND(C11*25%,2),IF(BP11="اولى",ROUND(C11*25%,2),IF(BP11="ثانيه",ROUND(C11*50%,2),IF(BP11="ثالثه",ROUND(C11*75%,2),IF(BP11="م م",ROUND(C11*125%,2))))))),"") -> 144.96 | L11: =IF(BS11="مدرس",ROUND(C11*50%,2),"") -> 289.92 | M11: 1159.64 | O11: =IF(BS11="مدرس",IF(BP11="كبير ا",300,IF(BP11="كبير",325,IF(BP11="اولى",350,IF(BP11="ثانيه",375,IF(BP11="ثالثه",400,""))))),"") -> 300 | P11: 850 | R11: =IF(BP11="","",IF(BP11="كبير ا",375,IF(BP11="كبير",350,IF(BP11="اولى",325,IF(BP11="ثانيه",275,IF(BP11="ثالثه",225,IF(BP11="خامسه",175))))))) -> 375 | T11: =IF(BS11="مدرس",IF(BP11="كبير ا",180,IF(BP11="كبير",165,IF(BP11="اولى",125,IF(BP11="ثانيه",100,IF(BP11="ثالثه",75,))))),"") -> 180 | U11: 140 | V11: =IF(BS11="مدرس",IF(BP11="كبير ا",155,IF(BP11="كبير",140,IF(BP11="اولى",120,IF(BP11="ثانيه",85,IF(BP11="ثالثه",65,))))),"") -> 155 | W11: =IF(BS11="مدرس","",IF(BP11="اولى",85,IF(BP11="ثانيه",65,IF(BP11="ثالثه",55,IF(BP11="رابعه",50,IF(BP11="خامسه",50,)))))) ->  | X11: 6 | Y11: 4 | AE11: =IF(BS11="مدرس","",ROUND(AB11*8%,2)) ->  | AJ11: =IF(BS11="مدرس",$AJ$9,"") -> 10 | AK11: =SUM(F11:AJ11) -> 5975.19 | AM11: =ROUND(CA11*9%,2) -> 536.87 | AO11: =ROUND(CA11*1%,2) -> 59.65 | AP11: =ROUND(CA11*1%,2) -> 59.65 | AQ11: 9.5 | AR11: 3.1 | AT11: 137 | AU11: 32.6 | AW11: 2.5 | AX11: =IF($BS11="مدرس",$AX$9,"") -> 4.5 | AY11: =IF($BS11="مدرس",$AY$9,"") -> 2 | AZ11: =IF($BS11="مدرس",$AZ$9,"") -> 0.25 | BA11: =IF($BS11="مدرس",$BA$9,"") -> 3 | BB11: =IF($BS11="مدرس",$BB$9,"") -> 0.5 | BC11: =IF(BS11="مدرس",ROUND(F11*7%,2),"") -> 128.06 | BL11: 0.01 | BM11: =SUM(AL11:BL11) -> 979.19 | BN11: =AK11-BM11 -> 4996 | BO11: السعيد عبد النبي السيد علي | BP11: كبير ا | BQ11: ناصر بشبيش | BS11: مدرس | BX11: كبير ا | CA11: =SUM(F11:AI11) -> 5965.19 | CI11: =IF(BN11>5500,"3",IF(BN11>4500,"2.5",IF(BN11>3500,"2",IF(BN11>2500,"1.5",IF(BN11>1500,1))))) -> 2.5
B12: =BO12 -> فاطمه جابر عباس جادالله | C12: 690.85 | D12: 3 | F12: 2127.85 | G12: 64.92 | H12: =IF(BS12="مدرس",ROUND(C12*10%,2),"") -> 69.09 | I12: 319.18 | J12: =IF(BS12="مدرس",ROUND(C12*25%,2),"") -> 172.71 | K12: =IF(BS12="مدرس",IF(BP12="كبير",ROUND(C12*25%,2),IF(BP12="كبير ا",ROUND(C12*25%,2),IF(BP12="اولى",ROUND(C12*25%,2),IF(BP12="ثانيه",ROUND(C12*50%,2),IF(BP12="ثالثه",ROUND(C12*75%,2),IF(BP12="م م",ROUND(C12*125%,2))))))),"") -> 172.71 | L12: =IF(BS12="مدرس",ROUND(C12*50%,2),"") -> 345.43 | M12: 1381.68 | O12: 300 | P12: 875 | R12: =IF(BP12="","",IF(BP12="كبير ا",375,IF(BP12="كبير",350,IF(BP12="اولى",325,IF(BP12="ثانيه",275,IF(BP12="ثالثه",225,IF(BP12="خامسه",175))))))) -> 375 | T12: 180 | U12: 140 | V12: 155 | X12: 2 | Y12: 4 | AJ12: =IF(BS12="مدرس",$AJ$9,"") -> 10 | AK12: =SUM(F12:AJ12) -> 6694.57 | AM12: =ROUND(CA12*9%,2) -> 601.61 | AO12: =ROUND(CA12*1%,2) -> 66.85 | AP12: =ROUND(CA12*1%,2) -> 66.85 | AQ12: 9.5 | AR12: 3.1 | AS12: 6.07 | AT12: 171.3 | AU12: 36.5 | AW12: 3 | AX12: 4.5 | AY12: 2 | AZ12: 0.25 | BA12: 3 | BB12: 0.5 | BC12: =IF(BS12="مدرس",ROUND(F12*7%,2),"") -> 148.95 | BL12: 0.04 | BM12: 1124.02 | BN12: 5570.55 | BO12: فاطمه جابر عباس جادالله | BP12: كبير ا | BQ12: القاهرة المحلة | BS12: مدرس | BX12: كبير | CA12: =SUM(F12:AI12) -> 6684.57 | CI12: 3
B13: رجاء صلاح محمد محمود | C13: 486.69 | D13: 4 | F13: 1618.05 | G13: 45.76 | H13: 48.67 | I13: 242.71 | J13: 121.67 | K13: 121.67 | L13: 243.35 | M13: 851.7 | O13: 325 | P13: 825 | R13: 350 | T13: 165 | U13: 145 | V13: 140 | X13: 2 | Y13: 4 | Z13: 121.67 | AJ13: 10 | AK13: 5381.25 | AM13: 483.41 | AO13: 53.71 | AP13: 53.71 | AQ13: 9 | AR13: 2.8 | AT13: 109 | AU13: 29.4 | AW13: 2 | AX13: 4.5 | AY13: 2 | AZ13: 0.25 | BA13: 3 | BB13: 0.5 | BC13: 113.26 | BK13: 50 | BL13: 0.01 | BM13: 916.55 | BN13: 4464.7 | BO13: رجاء صلاح محمد محمود | BP13: كبير | BQ13: الاسكندرية - نبروه | BS13: مدرس | BX13: اولى | CA13: 5371.25 | CI13: 2
B14: فتحى المغازى محمد | C14: 525.58 | D14: 5 | F14: 1709.21 | G14: 49.36 | H14: =IF(BS14="مدرس",ROUND(C14*10%,2),"") -> 52.56 | I14: 256.38 | J14: =IF(BS14="مدرس",ROUND(C14*25%,2),"") -> 131.4 | K14: =IF(BS14="مدرس",IF(BP14="كبير",ROUND(C14*25%,2),IF(BP14="كبير ا",ROUND(C14*25%,2),IF(BP14="اولى",ROUND(C14*25%,2),IF(BP14="ثانيه",ROUND(C14*50%,2),IF(BP14="ثالثه",ROUND(C14*75%,2),IF(BP14="م م",ROUND(C14*125%,2))))))),"") -> 131.4 | L14: =IF(BS14="مدرس",ROUND(C14*50%,2),"") -> 262.79 | M14: 919.76 | O14: 325 | P14: 825 | R14: 350 | T14: 165 | U14: 145 | V14: 140 | X14: 6 | Y14: 4 | AJ14: =IF(BS14="مدرس",$AJ$9,"") -> 10 | AK14: =SUM(F14:AJ14) -> 5482.86 | AM14: 492.56 | AO14: 54.73 | AP14: 54.73 | AQ14: 9 | AR14: 2.8 | AT14: 112 | AU14: 29.7 | AW14: 2.5 | AX14: 4.5 | AY14: 2 | AZ14: 0.25 | BA14: 3 | BB14: 0.5 | BC14: =IF(BS14="مدرس",ROUND(F14*7%,2),"") -> 119.64 | BD14: 9 | BM14: 896.91 | BN14: 4585.95 | BO14: فتحى المغازى محمد العزب | BP14: كبير | BQ14: البنك الأهلى | BS14: مدرس | CA14: =SUM(F14:AI14) -> 5472.86 | CI14: 2.5
B15: السيد بدير السيد محمود | C15: 487.09 | D15: 6 | F15: 1618.98 | G15: 45.8 | H15: 48.71 | I15: 242.85 | J15: 121.77 | K15: 121.77 | L15: 243.55 | M15: 852.4 | O15: 325 | P15: 825 | R15: 350 | T15: 165 | U15: 145 | V15: 140 | X15: 6 | Y15: 4 | AJ15: 10 | AK15: 5265.83 | AM15: 473.02 | AO15: 52.56 | AP15: 52.56 | AQ15: 9 | AR15: 2.8 | AT15: 86.5 | AU15: 28.5 | AW15: 2 | AX15: 4.5 | AY15: 2 | AZ15: 0.25 | BA15: 3 | BB15: 0.5 | BC15: 113.33 | BL15: 0.01 | BM15: 830.53 | BN15: 4435.3 | BO15: السيد بدير السيد محمود | BP15: كبير | BQ15: ناصر -بشبيش | BS15: مدرس | BX15: ثانيه | CA15: 5255.83 | CI15: 2
B16: نعيمه المغاورى طه السيد | C16: 548.27 | D16: 7 | F16: 1773.69 | G16: 51.53 | H16: 54.83 | I16: 266.05 | J16: 137.07 | K16: 137.07 | L16: 274.14 | M16: 959.45 | O16: 325 | P16: 825 | R16: 350 | T16: 165 | U16: 145 | V16: 140 | X16: 2 | Y16: 4 | AJ16: 10 | AK16: 5619.83 | AM16: 504.88 | AO16: 56.1 | AP16: 56.1 | AQ16: 9 | AR16: 2.8 | AT16: 119.6 | AU16: 30.4 | AW16: 2.5 | AX16: 4.5 | AY16: 2 | AZ16: 0.25 | BA16: 3 | BB16: 0.5 | BC16: 124.16 | BL16: 0.04 | BM16: 915.83 | BN16: 4704 | BO16: نعيمه المغاورى طه السيد | BP16: كبير | BQ16: مصر المحلة | BS16: مدرس | BX16: ثالثه | CA16: 5609.83 | CI16: 2.5
B17: حنان راشد بركات الذهبى | C17: 462.97 | D17: 8 | F17: 1563.12 | G17: 43.01 | H17: 46.3 | I17: 234.47 | J17: 115.74 | K17: 115.74 | L17: 231.49 | M17: 810.19 | O17: 325 | P17: 800 | R17: 350 | T17: 165 | U17: 145 | V17: 140 | X17: 2 | Y17: 4 | AJ17: 10 | AK17: 5101.06 | AM17: 458.2 | AO17: 50.91 | AP17: 50.91 | AQ17: 9 | AR17: 2.8 | AT17: 79.7 | AU17: 27.5 | AW17: 2 | AX17: 4.5 | AY17: 2 | AZ17: 0.25 | BA17: 3 | BB17: 0.5 | BC17: 109.42 | BL17: 0.02 | BM17: 800.71 | BN17: 4300.35 | BO17: حنان راشد بركات الذهبى | BP17: كبير | BQ17: القاهرة المحلة | BS17: مدرس | BX17: رابعه | CA17: 5091.06 | CI17: 2
B18: نجلاء فتحى عبدالمتعال الحايس | C18: 461.58 | D18: 9 | F18: 1560.43 | G18: 42.87 | H18: 46.16 | I18: 234.06 | J18: 115.4 | K18: 115.4 | L18: 230.79 | M18: 808.12 | O18: 325 | P18: 800 | R18: 350 | T18: 165 | U18: 145 | V18: 140 | X18: 2 | Y18: 4 | AJ18: 10 | AK18: 5094.23 | AM18: 457.58 | AO18: 50.84 | AP18: 50.84 | AQ18: 9 | AR18: 2.8 | AT18: 79.7 | AU18: 27.5 | AW18: 2 | AX18: 4.5 | AY18: 2 | AZ18: 0.25 | BA18: 3 | BB18: 0.5 | BC18: 109.23 | BL18: 0.04 | BM18: 799.78 | BN18: 4294.45 | BO18: نجلاء فتحى عبدالمتعال الحايس | BP18: كبير | BQ18: ناصر -بشبيش | BS18: مدرس | BX18: خامسه | CA18: 5084.23 | CI18: 2
B19: رحاب فؤاد مجاهد | C19: 359.64 | D19: 10 | F19: 1357.58 | G19: 33.81 | H19: 35.96 | I19: 203.64 | J19: 89.91 | K19: 89.91 | L19: 179.82 | M19: 539.46 | O19: 350 | P19: 775 | R19: 325 | S19: 274 | T19: 125 | U19: 150 | V19: 120 | X19: 2 | Y19: 4 | AJ19: 10 | AK19: 4665.09 | AM19: 418.96 | AO19: 46.55 | AP19: 46.55 | AQ19: 7.9 | AR19: 2.4 | AS19: 4.89 | AT19: 68.1 | AU19: 25.5 | AW19: 2 | AX19: 4.5 | AY19: 2 | AZ19: 0.25 | BA19: 3 | BB19: 0.5 | BC19: 95.03 | BI19: 7.1 | BL19: 0.01 | BM19: 735.24 | BN19: 3929.85 | BO19: رحاب فؤاد مجاهد | BP19: اولى | BQ19: ناصر -بشبيش | BS19: مدرس | BX19: سادسه | CA19: 4655.09 | CI19: 2
B20: محمد ابوالنجا محمد ابوالنجا | C20: 512.7 | D20: 11 | F20: 1665.8 | G20: 48.19 | H20: 51.27 | I20: 249.87 | J20: 128.18 | K20: 128.18 | L20: 256.35 | M20: 769.08 | O20: 350 | P20: 775 | R20: 325 | T20: 125 | U20: 150 | V20: 120 | X20: 6 | Y20: 4 | AJ20: 10 | AK20: 5161.92 | AM20: 463.67 | AO20: 51.52 | AP20: 51.52 | AQ20: 7.9 | AR20: 2.4 | AT20: 82.6 | AU20: 27.7 | AW20: 2 | AX20: 4.5 | AY20: 2 | AZ20: 0.25 | BA20: 3 | BB20: 0.5 | BC20: 116.61 | BM20: 816.17 | BN20: 4345.75 | BO20: محمد ابوالنجا محمد ابوالنجا | BP20: اولى | BQ20: فيصل الإسلامى | BS20: مدرس | CA20: 5151.92 | CI20: 2
B21: محمد فتحى عبدالمعطى بدر | C21: 246 | D21: 12 | F21: 1046.63 | G21: 24.12 | H21: 24.6 | I21: 156.99 | J21: 61.5 | K21: 123 | L21: 123 | M21: 307.5 | N21: 40 | O21: 375 | P21: 625 | R21: 275 | S21: 189 | T21: 100 | U21: 165 | V21: 85 | X21: 4 | Y21: 4 | AJ21: 10 | AK21: 3739.34 | AM21: 335.64 | AO21: 37.29 | AP21: 37.29 | AQ21: 7 | AR21: 1.7 | AT21: 16.7 | AU21: 20.4 | AW21: 1.5 | AX21: 4.5 | AY21: 2 | AZ21: 0.25 | BA21: 3 | BB21: 0.5 | BC21: 73.26 | BL21: 0.01 | BM21: 541.04 | BN21: 3198.3 | BO21: محمد فتحى عبدالمعطى بدر | BP21: ثانيه | BQ21: الأهلى المحلة | BS21: مدرس | CA21: 3729.34 | CI21: 1.5
B22: ايمان محمد ابراهيم محمود | C22: 258 | D22: 13 | F22: 1154.67 | G22: 24.92 | H22: 25.8 | I22: 173.2 | J22: 64.5 | K22: 129 | L22: 129 | M22: 322.5 | O22: 375 | P22: 675 | R22: 275 | S22: 360 | T22: 100 | U22: 165 | V22: 85 | X22: 2 | Y22: 4 | AJ22: 10 | AK22: 4074.59 | AM22: 365.81 | AO22: 40.65 | AP22: 40.65 | AQ22: 7 | AR22: 1.7 | AT22: 25.8 | AU22: 22.4 | AW22: 1.5 | AX22: 4.5 | AY22: 2 | AZ22: 0.25 | BA22: 3 | BB22: 0.5 | BC22: 80.83 | BM22: 596.59 | BN22: 3478 | BO22: ايمان محمد ابراهيم محمود | BP22: ثانيه | BQ22: مصر المحلة | BS22: مدرس | CA22: 4064.59 | CI22: 1.5
A23: 945.29 | B23: عبد الحليم انور مخيمر محمد | D23: 14 | I23: 0 | P23: 775 | R23: 325 | W23: 85 | AB23: 2886.61 | AC23: 344.91 | AD23: 134.9 | AE23: 230.93 | AF23: 73.33 | AK23: 4855.68 | AM23: 437.01 | AO23: 48.56 | AP23: 48.56 | AQ23: 5 | AT23: 37.5 | AU23: 30.3 | AW23: 2 | BD23: 9 | BM23: 617.93 | BN23: 4237.75 | BO23: عبد الحليم انور مخيمر محمد | BP23: اولى | BQ23: الأهلى المحلة | CA23: 4855.68 | CI23: 2
A24: 593.88 | B24: رمضان الصباحى السعداوي ابوشناف | D24: 15 | I24: 0 | P24: 675 | R24: 275 | S24: 144 | W24: 65 | AB24: 2276 | AC24: 216.69 | AE24: 182.08 | AF24: 47.78 | AK24: 3881.55 | AM24: 349.34 | AN24: 18.52 | AO24: 38.82 | AP24: 38.82 | AQ24: 5 | AT24: 22.2 | AU24: 24.95 | AW24: 1.5 | BD24: 9 | BM24: 508.15 | BN24: 3373.4 | BO24: رمضان الصباحى السعداوي ابوشناف | BP24: ثانيه | BQ24: ناصر -بشبيش | CA24: 3881.55 | CI24: 1.5
A25: 676.45 | B25: حسن شان غازي سليمان غازي | D25: 16 | I25: 0 | P25: 575 | R25: 225 | W25: 55 | AB25: 2469.47 | AC25: 246.82 | AE25: 197.56 | AF25: 53.33 | AK25: 3822.18 | AM25: 344 | AO25: 38.22 | AP25: 38.22 | AQ25: 5 | AT25: 22.2 | AU25: 24.7 | AW25: 1.5 | BL25: 0.04 | BM25: 473.88 | BN25: 3348.3 | BO25: حسن شان غازي سليمان غازي | BP25: ثالثه | BQ25: ناصر -بشبيش | CA25: 3822.18 | CI25: 1.5
A26: 678.27 | B26: عبدالحميد عبدالمنعم عبدالحليم | D26: 17 | I26: 0 | P26: 575 | R26: 225 | W26: 55 | AB26: 2474.16 | AC26: 247.48 | AE26: 197.93 | AF26: 54.44 | AK26: 3829.01 | AM26: 344.61 | AN26: 3.55 | AO26: 38.29 | AP26: 38.29 | AQ26: 5 | AT26: 27.7 | AU26: 24.75 | AW26: 1.5 | BL26: 0.02 | BM26: 483.71 | BN26: 3345.3 | BO26: عبدالحميد عبدالمنعم عبدالحليم | BP26: ثالثه | BQ26: ناصر -بشبيش | CA26: 3829.01 | CI26: 1.5
I27: 0 | AE27: 0 | AM27: 0 | BM27: 0 | BN27: 0 | CI27: FALSE
B28: 0 | I28: 0 | J28: =IF(BS28="مدرس",TRUNC(C28*25%,2),"") ->  | K28: =IF(BS28="مدرس",IF(BP28="كبير",TRUNC(C28*25%,2),IF(BP28="كبير ا",TRUNC(C28*25%,2),IF(BP28="اولى",TRUNC(C28*25%,2),IF(BP28="ثانيه",TRUNC(C28*50%,2),IF(BP28="ثالثه",TRUNC(C28*75%,2),IF(BP28="م م",trunic(C28*125%,2))))))),"") ->  | W28: 0 | AE28: 0 | AK28: 0 | AM28: 0 | AO28: 0 | AP28: 0 | BM28: 0 | BN28: 0 | CA28: 0 | CI28: FALSE
B29: 0 | I29: 0 | K29: =IF(BS29="مدرس",IF(BP29="كبير",TRUNC(C29*25%,2),IF(BP29="كبير ا",TRUNC(C29*25%,2),IF(BP29="اولى",TRUNC(C29*25%,2),IF(BP29="ثانيه",TRUNC(C29*50%,2),IF(BP29="ثالثه",TRUNC(C29*75%,2),IF(BP29="م م",trunic(C29*125%,2))))))),"") ->  | W29: 0 | AE29: 0 | AK29: 0 | AM29: 0 | AO29: 0 | AP29: 0 | BM29: 0 | BN29: 0 | CA29: 0
B30: 0 | G30: =C30*10% -> 0 | H30: =IF(BS30="مدرس",TRUNC(C30*10%,2),"") ->  | I30: 0 | K30: =IF(BS30="مدرس",IF(BP30="كبير",TRUNC(C30*25%,2),IF(BP30="كبير ا",TRUNC(C30*25%,2),IF(BP30="اولى",TRUNC(C30*25%,2),IF(BP30="ثانيه",TRUNC(C30*50%,2),IF(BP30="ثالثه",TRUNC(C30*75%,2),IF(BP30="م م",trunic(C30*125%,2))))))),"") ->  | L30: =IF(BS30="مدرس",TRUNC(C30*50%,2),"") ->  | M30: =IF(BP30="كبير ا",C30*200%,IF(BP30="كبير",C30*175%,IF(BP30="اولى",C30*150%,IF(BP30="ثانيه",C30*100%,IF(BP30="ثالثه",C30*75%,))))) -> 0 | W30: 0 | AJ30: =IF(BS30="مدرس",AJ29,"") ->  | AK30: 0 | AM30: 0 | AO30: 0 | AP30: 0 | AX30: =IF($BS30="مدرس",AX29,"") ->  | AY30: =IF($BS30="مدرس",AY29,"") ->  | AZ30: =IF($BS30="مدرس",AZ29,"") ->  | BA30: =IF($BS30="مدرس",BA29,"") ->  | BB30: =IF($BS30="مدرس",BB29,"") ->  | BC30: =IF(BS30="مدرس",TRUNC(F30*7%,2),"") ->  | BM30: =TRUNC(SUM(AL30:BL30),2) -> 0 | BN30: 0 | CA30: 0
B31: 0 | G31: =C31*10% -> 0 | I31: 0 | K31: =IF(BS31="مدرس",IF(BP31="كبير",TRUNC(C31*25%,2),IF(BP31="كبير ا",TRUNC(C31*25%,2),IF(BP31="اولى",TRUNC(C31*25%,2),IF(BP31="ثانيه",TRUNC(C31*50%,2),IF(BP31="ثالثه",TRUNC(C31*75%,2),IF(BP31="م م",trunic(C31*125%,2))))))),"") ->  | M31: =IF(BP31="كبير ا",C31*200%,IF(BP31="كبير",C31*175%,IF(BP31="اولى",C31*150%,IF(BP31="ثانيه",C31*100%,IF(BP31="ثالثه",C31*75%,))))) -> 0 | W31: 0 | AK31: 0 | AM31: 0 | AO31: 0 | AP31: 0 | BM31: 0 | BN31: 0 | CA31: 0
F32: =SUM(F10:F31) -> 21325.34 | G32: =SUM(G10:G31) -> 598.43 | H32: 636.71 | I32: 3198.8 | J32: 1591.77 | K32: 1717.77 | L32: 3183.55 | M32: 11177.16 | N32: =SUM(N10:N31) -> 40 | O32: =SUM(O10:O31) -> 4300 | P32: =SUM(P10:P31) -> 12950 | Q32: =SUM(Q10:Q31) -> 0 | R32: =SUM(R10:R31) -> 5475 | S32: 967 | T32: 1980 | U32: 1920 | V32: 1715 | W32: 260 | X32: 48 | Y32: 52 | Z32: =SUM(Z10:Z31) -> 121.67 | AA32: =SUM(AA10:AA31) -> 150 | AB32: =SUM(AB10:AB31) -> 10106.24 | AC32: 1055.9 | AD32: 134.9 | AE32: 808.5 | AF32: 228.88 | AG32: 0 | AH32: 0 | AI32: 0 | AJ32: =SUM(AJ10:AJ31) -> 130 | AK32: =SUM(AK10:AK31) -> 85872.62 | AL32: =SUM(AL10:AL31) -> 0 | AM32: 7716.83 | AN32: 22.07 | AO32: 857.43 | AP32: 857.43 | AQ32: =SUM(AQ10:AQ31) -> 132.3 | AR32: 34.3 | AS32: 10.96 | AT32: 1374.6 | AU32: 483.95 | AV32: 0 | AW32: 35 | AX32: =SUM(AX10:AX31) -> 58.5 | AY32: =SUM(AY10:AY31) -> 26 | AZ32: =SUM(AZ10:AZ31) -> 3.25 | BA32: =SUM(BA10:BA31) -> 39 | BB32: =SUM(BB10:BB31) -> 6.5 | BC32: =SUM(BC10:BC31) -> 1492.77 | BD32: =SUM(BD10:BD31) -> 27 | BE32: =SUM(BE11:BE31) -> 0 | BF32: 0 | BG32: 0 | BH32: =SUM(BH10:BH31) -> 0 | BI32: =SUM(BI10:BI31) -> 7.1 | BJ32: 0 | BK32: 50 | BL32: =SUM(BL10:BL31) -> 0.28 | BM32: =SUM(BM10:BM31) -> 13235.27 | BN32: =SUM(BN10:BN31) -> 72637.35

Sheet خلفية (3)
B6: جنيه | C6: قسم | D6: فرع | E6: فصل | F6: بنك | G6: المرتب الأساسى
B7: =#REF! ->  | G7: اساسى | AB7: وزارة التربية والتعليم
B8: =#REF! ->  | G8: 2014 10%
B9: =#REF! ->  | G9: 2015 10% | AB9: محافظة الغربية
B10: =#REF! ->  | G10: 2022 15 % | H10: 15 % 2022
B11: =#REF! ->  | G11: حافز 25%
B12: =#REF! ->  | G12: أداء | AB12: مدرسة ميت السراج المتكاملة
B13: =#REF! ->  | H13: كادر
B14: =#REF! ->  | H14: كادرين
B15: =#REF! ->  | H15: تطوير
B16: =#REF! ->  | H16: اعباء | J16: كشف المستقطع لحساب المعاشات عن شهر ابريل سنة 2022
B17: =#REF! ->  | H17: علاوة مقطوعة 2019 و2020و2021
B18: =#REF! ->  | H18: علاوة مقطوعة إدارى 8% 2022
B19: =#REF! ->  | H19: علاوة مقطوعة 2022 مدرس 15% | N19: بيان اجمالى | R19: المبالغ
B20: =#REF! ->  | H20: حافز تكميلى
B21: =#REF! ->  | H21: بدل معلم | N21: حصة الحكومة 12% | R21: =E45 -> 
B22: =#REF! ->  | H22: حافز أداء
B23: =#REF! ->  | H23: مكافئة مدرس | N23: حصة الموظفين 9% | R23: =E46 -> 
B24: =#REF! ->  | H24: مكافئة إدارى
B25: =#REF! ->  | H25: علاوة اجتماعية | N25: اصابة عمل 1% | R25: =E48 -> 
B26: =#REF! ->  | H26: علاوة اضافية
B27: =#REF! ->  | H27: دمج | N27: 1% | R27: =R25 ->  | AA27: كشف الماهيات والمرتبات للعاملين
B28: =#REF! ->  | H28: حافز مدير أو وكيل
B29: =#REF! ->  | H29: الأجر الوظيفى
B30: =#REF! ->  | H30: الأجر المكمل | N30: 1% | R30: =R25 -> 
B31: =#REF! ->  | H31: الأجر المكمل 5% 2022
B32: =#REF! ->  | H32: الحافز التعويضى
B33: =#REF! ->  | H33: 91.5% | N33: 1.25% | R33: =E52 ->  | AD33: عن شهر ابريل عام 2022
B34: =#REF! ->  | H34: الحد الأدنى
B35: =#REF! ->  | H35: دكتوراه | N35: ادخار 3% | R35: =E51 -> 
B36: =#REF! ->  | H36: اصابة عمل 1%
B37: =B40*1.25% ->  | H37: ادخار 1.25% | N37: مدة سابقة | R37: =E47 -> 
B38: =B40*3% ->  | H38: تأمين صحى 3%
B39: =B40*12% ->  | H39: حصة الحكومة 12% | N39: بدل إعارة | R39: =E53 -> 
B40: =SUM(B7:B35) ->  | H40: اجمالى خاضع معاشات
B41: =#REF! ->  | H41: المنحة | N41: الجملة | R41: =SUM(R21:U40) -> 
B42: =ROUND(SUM(B36:B41),2) ->  | C42: جملة المبالغ المستحقة
C43: صافى كلى | E43: صافى جزئى | H43: جارى المعاشات
C45: =SUM(E45:F53) ->  | E45: =B39 ->  | H45: حصة الحكومة 12%
E46: =#REF! ->  | H46: إشتراك موظف 9%
E47: =#REF! ->  | H47: أقساط المدد السابقة
E48: =B36 ->  | H48: 0.01
E49: =E48 ->  | H49: إدخار 1%
E50: =E49 ->  | H50: إدخار 1%
E51: =B38 ->  | H51: إدخار 3% | X51: اقـــــــــــــــــــــــــــــــــــــــــــــــــــــــــــــرار
E52: =B37 ->  | H52: إصابة عمل 1.25%
E53: =#REF! ->  | H53: بدل اعارة | X53: أقر أنا / .....................................مسئول ماهيات المدرسة بأنى مسئول عن الملف أثناء الدفع الاليكترونى وأى تعديل أو أخطاء اقوم بتصحيحها..... وهذا إقرار منى بذلك ....
H54: جارى الضرائب
C55: =SUM(E55:F58) ->  | E55: =#REF! ->  | H55: كسب عمل
E56: =#REF! ->  | H56: دمغة عادية
H57: دمغة توقيع
H58: دمغة تنمية موارد
H59: استحقاق هيئات وشركات
C60: =SUM(E60:F77) ->  | E60: =#REF! ->  | H60: نقابة مهن تعليمية
E61: =#REF! ->  | H61: رعاية صحية
E62: =#REF! ->  | H62: تأمين اجتماعى
E63: =#REF! ->  | H63: نادى معلمين
E64: =#REF! ->  | H64: رابطة جامعيين
E65: =#REF! ->  | H65: صندوق زمالة
E66: =#REF! ->  | H66: مهن تطبيقية
E67: =#REF! ->  | H67: قسط شركة اورانج
E68: =#REF! ->  | H68: قرض حسن نقابة مهن تعليمية
E69: =#REF! ->  | H69: لجنة نقابية
E70: =#REF! ->  | H70: بحث علمى
E71: =#REF! ->  | H71: صندوق زمالة
E72: =#REF! ->  | H72: 2% صندوق رعاية
E73: =#REF! ->  | H73: 2% عمولة نقابية
E74: =#REF! ->  | H74: مهن اجتماعية
E75: =#REF! ->  | H75: استبعاد حافز أداء
B76: =C45+C55+C60 ->  | E76: =#REF! ->  | H76: صندوق شهداء
E77: =#REF! ->  | H77: كسر القرش
B78: =B42-B76 ->  | C78: الجملة | E78: =NoToTxt(B78,"جنيه","قرشاً") ->  | J78: لا غير
B81: رئيس الوحدة | D81: وكيل القسم | F81: رئيس القسم | H81: مدير الإدارة
B85: 213596.05

Sheet خلفية فارغه
B6: جنيه | C6: قسم | D6: فرع | E6: فصل | F6: بنك | G6: المرتب الأساسى
G7: اساسى | AB7: وزارة التربية والتعليم
G8: 2014 10%
G9: 2015 10% | AB9: محافظة الغربية
G10: 2022 15 % | H10: 15 % 2022
G11: حافز 25%
G12: أداء | AB12: مدرسة ميت السراج المتكاملة
H13: كادر
H14: كادرين
H15: تطوير
H16: اعباء | J16: كشف المستقطع لحساب المعاشات عن شهر ابريل سنة 2022
H17: علاوة مقطوعة 2019 و2020و2021
H18: علاوة مقطوعة إدارى 8% 2022
H19: علاوة مقطوعة 2022 مدرس 15% | N19: بيان اجمالى | R19: المبالغ
H20: حافز تكميلى
H21: بدل معلم | N21: حصة الحكومة 12% | R21: =E45 -> 0
H22: حافز أداء
H23: مكافئة مدرس | N23: حصة الموظفين 9% | R23: =E46 -> 0
H24: مكافئة إدارى
H25: علاوة اجتماعية | N25: اصابة عمل 1% | R25: =E48 -> 0
H26: علاوة اضافية
H27: دمج | N27: 1% | R27: =R25 -> 0 | AA27: كشف الماهيات والمرتبات للعاملين
H28: حافز مدير أو وكيل
H29: الأجر الوظيفى
H30: الأجر المكمل | N30: 1% | R30: =R25 -> 0
H31: الأجر المكمل 5% 2022
H32: الحافز التعويضى
H33: 91.5% | N33: 1.25% | R33: =E52 -> 0 | AD33: عن شهر ابريل عام 2022
H34: الحد الأدنى
H35: دكتوراه | N35: ادخار 3% | R35: =E51 -> 0
H36: اصابة عمل 1%
H37: ادخار 1.25% | N37: مدة سابقة | R37: =E47 -> 0
H38: تأمين صحى 3%
H39: حصة الحكومة 12% | N39: بدل إعارة | R39: =E53 -> 0
H40: اجمالى خاضع معاشات
H41: المنحة | N41: الجملة | R41: =SUM(R21:U40) -> 0
C42: جملة المبالغ المستحقة
C43: صافى كلى | E43: صافى جزئى | H43: جارى المعاشات
H45: حصة الحكومة 12%
H46: إشتراك موظف 9%
H47: أقساط المدد السابقة
H48: 0.01
H49: إدخار 1%
H50: إدخار 1%
H51: إدخار 3% | X51: اقـــــــــــــــــــــــــــــــــــــــــــــــــــــــــــــرار
H52: إصابة عمل 1.25%
H53: بدل اعارة | X53: أقر أنا / .....................................مسئول ماهيات المدرسة بأنى مسئول عن الملف أثناء الدفع الاليكترونى وأى تعديل أو أخطاء اقوم بتصحيحها..... وهذا إقرار منى بذلك ....
H54: جارى الضرائب
H55: كسب عمل
H56: دمغة عادية
H57: دمغة توقيع
H58: دمغة تنمية موارد
H59: استحقاق هيئات وشركات
H60: نقابة مهن تعليمية
H61: رعاية صحية
H62: تأمين اجتماعى
H63: نادى معلمين
H64: رابطة جامعيين
H65: صندوق زمالة
H66: مهن تطبيقية
H67: قسط شركة اورانج
H68: قرض حسن نقابة مهن تعليمية
H69: لجنة نقابية
H70: بحث علمى
H71: صندوق زمالة
H72: 2% صندوق رعاية
H73: 2% عمولة نقابية
H74: مهن اجتماعية
H75: استبعاد حافز أداء
B76: =C45+C55+C60 -> 0 | H76: صندوق شهداء
H77: كسر القرش
B78: =B42-B76 -> 0 | C78: الجملة | J78: لا غير
B81: رئيس الوحدة | D81: وكيل القسم | F81: رئيس القسم | H81: مدير الإدارة
B85: 213596.05

Sheet خلفية بنك
B6: جنيه | C6: قسم | D6: فرع | E6: فصل | F6: بنك | G6: المرتب الأساسى
B7: =بنك!F32 -> 21325.34 | G7: اساسى | AB7: وزارة التربية والتعليم
B8: =بنك!G32 -> 598.43 | G8: 2014 10%
B9: =بنك!H32 -> 636.71 | G9: 2015 10% | AB9: محافظة الغربية
B10: =بنك!I32 -> 3198.8 | G10: 2022 15%
B11: =بنك!J32 -> 1591.77 | G11: حافز 25%
B12: =بنك!K32 -> 1717.77 | G12: أداء | AB12: مدرسة ميت السراج المتكاملة
B13: =بنك!L32 -> 3183.55 | G13: كادر
B14: =بنك!M32 -> 11177.16 | G14: كادرين
B15: =بنك!N32 -> 40 | G15: تطوير
B16: =بنك!O32 -> 4300 | G16: اعباء | J16: كشف المستقطع لحساب المعاشات عن شهر ابريل سنة 2022
B17: =بنك!P32 -> 12950 | G17: علاوة مقطوعة 2019 و2020و2021
B18: =بنك!AE32 -> 808.5 | G18: علاوة مقطوعة إدارى 8% 2022
B19: =بنك!R32 -> 5475 | G19: علاوة مقطوعة 2022 مدرس 15% | N19: بيان اجمالى | R19: المبالغ
B20: =بنك!S32 -> 967 | G20: حافز تكميلى
B21: =بنك!T32 -> 1980 | G21: بدل معلم | N21: حصة الحكومة 12% | R21: =E44 -> 10289.1144
B22: =بنك!U32 -> 1920 | G22: حافز أداء
B23: =بنك!V32 -> 1715 | G23: مكافئة مدرس | N23: حصة الموظفين 9% | R23: =E45 -> 7716.83
B24: =بنك!W32 -> 260 | G24: مكافئة إدارى
B25: =بنك!X32 -> 48 | G25: علاوة اجتماعية | N25: اصابة عمل 1% | R25: =E47 -> 857.43
B26: =بنك!Y32 -> 52 | G26: علاوة اضافية
B27: =بنك!Z32 -> 121.67 | G27: دمج | N27: 1% | R27: =R25 -> 857.43 | AA27: كشف الماهيات والمرتبات للعاملين
B28: =بنك!AA32 -> 150 | G28: حافز مدير أو وكيل
B29: =بنك!AB32 -> 10106.24 | G29: الأجر الوظيفى
B30: =بنك!AC32 -> 1055.9 | G30: الأجر المكمل | N30: 1% | R30: =R25 -> 857.43
B31: =بنك!AF32 -> 228.88 | G31: الحافز التعويضى
B32: =بنك!AG32 -> 0 | G32: 91.5% | N32: 1.25% | R32: =E51 -> 1071.78275 | AD32: عن شهر ابريل عام 2022
B33: =بنك!AH32 -> 0 | G33: الحد الأدنى
B34: =بنك!AD32 -> 134.9 | G34: أجر مكمل 5% 2022 | N34: ادخار 3% | R34: =E50 -> 2572.2786
B35: =بنك!AO32 -> 857.43 | G35: اصابة عمل 1%
B36: =B39*1.25% -> 1071.78275 | G36: ادخار 1.25% | N36: مدة سابقة | R36: =E46 -> 22.07
B37: =B39*3% -> 2572.2786 | G37: تأمين صحى 3%
B38: =B39*12% -> 10289.1144 | G38: حصة الحكومة 12% | N38: بدل إعارة | R38: =E52 -> 10.96
B39: =SUM(B7:B34) -> 85742.62 | G39: اجمالى خاضع معاشات
B40: =بنك!AJ32 -> 130 | G40: المنحة | N40: الجملة | R40: =SUM(R21:U39) -> 24255.32575
B41: =ROUND(SUM(B35:B40),2) -> 100663.23 | C41: جملة المبالغ المستحقة
C42: صافى كلى | E42: صافى جزئى | G42: جارى المعاشات
C44: =SUM(E44:F52) -> 24255.32575 | E44: =B38 -> 10289.1144 | G44: حصة الحكومة 12%
E45: =بنك!AM32 -> 7716.83 | G45: إشتراك موظف 9%
E46: =بنك!AN32 -> 22.07 | G46: أقساط المدد السابقة
E47: =B35 -> 857.43 | G47: 0.01
E48: =E47 -> 857.43 | G48: إدخار 1%
E49: =E48 -> 857.43 | G49: إدخار 1%
E50: =B37 -> 2572.2786 | G50: إدخار 3% | X50: اقـــــــــــــــــــــــــــــــــــــــــــــــــــــــــــــرار
E51: =B36 -> 1071.78275 | G51: إصابة عمل 1.25%
E52: =بنك!AS32 -> 10.96 | G52: بدل اعارة | X52: أقر أنا / .....................................مسئول ماهيات المدرسة بأنى مسئول عن الملف أثناء الدفع الاليكترونى وأى تعديل أو أخطاء اقوم بتصحيحها..... وهذا إقرار منى بذلك ....
G53: جارى الضرائب
C54: =SUM(E54:F57) -> 1858.55 | E54: =بنك!AT32 -> 1374.6 | G54: كسب عمل
E55: =بنك!AU32 -> 483.95 | G55: دمغة عادية
G56: دمغة توقيع
G57: دمغة تنمية موارد
G58: استحقاق هيئات وشركات
C59: =SUM(E59:F76) -> 1912 | E59: =بنك!AX32 -> 58.5 | G59: نقابة مهن تعليمية
E60: =بنك!AY32 -> 26 | G60: رعاية صحية
E61: =بنك!AZ32 -> 3.25 | G61: تأمين اجتماعى
E62: =بنك!BA32 -> 39 | G62: نادى معلمين
E63: =بنك!BB32 -> 6.5 | G63: رابطة جامعيين
E64: =بنك!BG32 -> 0 | G64: صندوق زمالة
E65: =بنك!BD32 -> 27 | G65: مهن تطبيقية
E66: =بنك!BI32 -> 7.1 | G66: مهن زراعية
E67: =بنك!AV32 -> 0 | G67: قسط شركة اورانج
E68: =بنك!BE32 -> 0 | G68: قرض حسن نقابة مهن تعليمية
E69: =بنك!BF32 -> 0 | G69: لجنة نقابية
E70: =بنك!BH32 -> 0 | G70: بحث علمى
E71: =بنك!BC32 -> 1492.77 | G71: صندوق زمالة
E72: =بنك!AQ32 -> 132.3 | G72: 2% صندوق رعاية
E73: =بنك!AR32 -> 34.3 | G73: 2% عمولة نقابية
E74: =بنك!BK32 -> 50 | G74: مهن اجتماعية
B75: =C44+C54+C59 -> 28025.87575 | E75: =بنك!AW32 -> 35 | G75: صندوق شهداء
E76: =بنك!BL32 -> 0.28 | G76: كسر القرش
B77: =B41-B75 -> 72637.35425 | C77: الجملة | D77: =NoToTxt(B77,"جنيه","قرشاً") -> فقط اثنان وسبعون ألف وستمائة وسبعة وثلاثون جنيه وخمسة وثلاثون قرشاً | I77: لا غير
B80: رئيس الوحدة وكيل القسم رئيس القسم مدير الإدارة
E88: ح

Sheet مفردات مدرس
B1: إدارة : شرق المحلة التعليمية | F1: إدارة الموارد البشرية - ماهيات
B2: مدرسة ميت السراج المتكاملة ع | F2: بيان مفردات مرتب فى 2021/7/1
B3: السيد الأستاذ / .................................................................. الآتى بيان مرتب
A4: 25 | B4: السيد / | C4: =VLOOKUP(A4,بيانات!D10:BT68,64,0) -> محمد محمد الجمل | G4: الوظيفة | H4: =VLOOKUP(A4,بيانات!D10:BT68,69,0) -> معلم أول
B6: الدرجة المالية : | C6: =VLOOKUP(A4,بيانات!D10:BT68,65,0) -> ثانيه | F6: الحالة الاجتماعية | G6: متزوج ويعول
B8: جنيه | C8: بيـــــــــــــــــــان | F8: مستقطع | G8: بيـــــــــــــــــــان
B9: =VLOOKUP(A4,بيانات!D10:BT68,3,0) -> 1176.92 | C9: الاساسي | F9: =B32 -> 373.55 | G9: 12% تأمين الشيخوخة
B10: =VLOOKUP(A4,بيانات!D10:BT68,4,0) -> 25.52 | C10: 10% 2014م | F10: =B33 -> 31.13 | G10: 1% مكافاة
B11: =VLOOKUP(A4,بيانات!D10:BT68,5,0) -> 26.4 | C11: 10% 2015م | F11: =B34 -> 38.91 | G11: 1.25% اصابة عمل
B12: =VLOOKUP(A4,بيانات!D10:BT68,6,0) -> 176.54 | C12: 15 % 2022م
B13: =VLOOKUP(A4,بيانات!D10:BT68,7,0) -> 66 | C13: 25% حافز | F13: =B35 -> 93.39 | G13: 3% المرض
B14: =VLOOKUP(A4,بيانات!D10:BT68,21,0) -> 6 | C14: علاوة اجتماعية | F14: =ROUND(B30*9%,2) -> 280.16 | G14: 9% شيخوخة وعجز ووفاة
B15: =VLOOKUP(A4,بيانات!D10:BT68,22,0) -> 4 | C15: علاوة اضافية | F15: =F10 -> 31.13 | G15: 1% مكافاة
B16: =VLOOKUP(A4,بيانات!D10:BT68,16,0) -> 312.54 | C16: حافز تكميلى | F16: =F10 -> 31.13 | G16: 1% تامين مرض
B17: =VLOOKUP(A4,بيانات!D10:BT68,8,0) -> 132 | C17: كادر
B18: =VLOOKUP(A4,بيانات!D10:BT68,10,0) -> 330 | C18: كادرين | F18: =VLOOKUP(A4,بيانات!D10:BT68,42,0) -> 0 | G18: اعارة
B19: =VLOOKUP(A4,بيانات!D10:BT68,8,0) -> 132 | C19: اداء | F19: =VLOOKUP(A4,بيانات!D10:BT68,37,0) -> 0 | G19: مدة سابقة
B20: =VLOOKUP(A4,بيانات!D10:BT68,12,0) -> 375 | C20: اعباء | G20: استبدال
B21: =VLOOKUP(A4,بيانات!D10:BU68,70,0) -> 0 | C21: مقطوعة مجمعة | F21: =VLOOKUP(A4,بيانات!D10:BT68,43,0) -> 25.1 | G21: كسب عمل
B22: =VLOOKUP(A4,بيانات!D10:BU68,11,0) -> 0 | C22: تطوير | F22: =VLOOKUP(A4,بيانات!D10:BT68,44,0) -> 22.2 | G22: دمغة عادية
B23: =VLOOKUP(A4,بيانات!D10:BU68,19,0) -> 85 | C23: مكافئة مدرس 212 | G23: ايرادات
B24: =VLOOKUP(A4,بيانات!D10:BU68,18,0) -> 165 | C24: حافز اداء قرار 212 | F24: =VLOOKUP(A4,بيانات!D10:BT68,47,0) -> 4.5 | G24: نقابة مهن تعليمية
B25: =VLOOKUP(A4,بيانات!D10:BU68,17,0) -> 100 | C25: بدل معلم قرار 212 | F25: =VLOOKUP(A4,بيانات!D10:BT68,48,0) -> 2 | G25: رعاية صحية
B26: =VLOOKUP(A4,بيانات!D10:BU68,24,0) -> 0 | C26: حافز دمج | F26: =VLOOKUP(A4,بيانات!D10:BT68,58,0) -> 0 | G26: مهن زراعية
B27: =VLOOKUP(A4,بيانات!D10:BU68,32,0) -> 0 | C27: دكتوراه | F27: =VLOOKUP(A4,بيانات!D10:BU68,60,0) -> 0 | G27: مهن اجتماعية
B28: =VLOOKUP(A4,بيانات!D10:BU68,30,0) -> 0 | C28: 91.5% | F28: =VLOOKUP(A4,بيانات!D10:BT68,49,0) -> 0.25 | G28: تامين جماعى
B29: =VLOOKUP(A4,بيانات!D10:BU68,31,0) -> 0 | C29: الحد الأدنى | F29: =VLOOKUP(A4,بيانات!D10:BT68,50,0) -> 3 | G29: نادى معلمين
B30: =ROUND(SUM(B9:B29),2) -> 3112.92 | C30: المجموع | F30: =VLOOKUP(A4,بيانات!D10:BT68,51,0) -> 0.5 | G30: رابطة جامعيين
B31: =VLOOKUP(A4,بيانات!D10:BT68,33,0) -> 10 | C31: منحة عيد العمال | F31: =VLOOKUP(A4,بيانات!D10:BT68,52,0) -> 82.38 | G31: 7% صندوق زمالة معلمين
B32: =ROUND(B30*12%,2) -> 373.55 | C32: 12% شيخوخة وعجز ووفاة | F32: =VLOOKUP(A4,بيانات!D10:BT68,56,0) -> 0 | G32: صندوق زمالة بطنطا
B33: =ROUND(B30*1%,2) -> 31.13 | C33: 1% مكافاة | F33: =VLOOKUP(A4,بيانات!D10:BT68,57,0) -> 0 | G33: لجنة نقابية بالقاهرة
B34: =ROUND(B30*1.25%,2) -> 38.91 | C34: 1.25% اصابة عمل | F34: =VLOOKUP(A4,بيانات!D10:BT68,58,0) -> 0 | G34: بحث علمى
B35: =ROUND(B30*3%,2) -> 93.39 | C35: 3% المرض | F35: =VLOOKUP(A4,بيانات!D10:BT68,54,0) -> 0 | G35: تطبيقية
B36: =ROUND(SUM(B30:B35),2) -> 3659.9 | C36: الجملة | F36: =VLOOKUP(A4,بيانات!D10:BT68,46,0) -> 1.5 | G36: صندوق تكريم الشهداء
B37: =F42 -> 1029.55 | C37: جملة المستقطع | F37: =VLOOKUP(A4,بيانات!D10:BT68,40,0) -> 7 | G37: رعاية صحية 2%
B38: =B36-B37 -> 2630.35 | C38: الصافى | F38: =VLOOKUP(A4,بيانات!D10:BT68,41,0) -> 1.7 | G38: عمولة نقابة 2%
F39: =VLOOKUP(A4,بيانات!D10:BT68,59,0) -> 0 | G39: جزاءات
F40: =VLOOKUP(A4,بيانات!D10:BT68,54,0) -> 0 | G40: قرض نقابة
F41: =VLOOKUP(A4,بيانات!D10:BT68,61,0) -> 0.02 | G41: كسر القرش
F42: =SUM(F9:F41) -> 1029.55 | G42: جملة استقطاعات
B43: =NoToTxt(B38,"جنيه","قرشاً") -> فقط ألفان وستمائة وثلاثون جنيه وخمسة وثلاثون قرشاً | H43: لا غير
B44: رئيس الوحدة | D44: رئيس القسم | G44: مدير الموارد البشرية

Sheet مفردات إدارى
B1: إدارة : شرق المحلة التعليمية | F1: إدارة الموارد البشرية - ماهيات
B2: مدرسة ميت السراج المتكاملة ع | F2: بيان مفردات مرتب فى 2021/7/1
B3: السيد الأستاذ / ................................................................................. الآتى بيان مرتب
A4: 35 | B4: السيد / | C4: =VLOOKUP(A4,بيانات!D10:BT68,64,0) -> ناديه مسعد محمود | G4: الوظيفة | H4: =VLOOKUP(A4,بيانات!D10:BT68,69,0) -> 0
B5: غير قابلة للصرف
B6: الدرجة المالية : | C6: =VLOOKUP(A4,بيانات!D10:BT68,65,0) -> اولى | F6: الحالة الاجتماعية | G6: متزوج ويعول
B8: جنيه | C8: بيـــــــــــــــــــان | F8: مستقطع | G8: بيـــــــــــــــــــان
B9: =VLOOKUP(A4,بيانات!D10:BZ68,71,0) -> 0 | C9: الاساسى الوهمى | F9: =B21 -> 555.98 | G9: 12% تأمين الشيخوخة
B10: =VLOOKUP(A4,بيانات!D10:BZ68,25,0) -> 2852.14 | C10: الأجر الوظيفى | F10: =B22 -> 138.99 | G10: 3% تأمين المرض
B11: =VLOOKUP(A4,بيانات!D10:BZ68,26,0) -> 303.41 | C11: الأجر المكمل | F11: =B24 -> 57.91 | G11: 1.25% تأمين اصابة عمل
B12: =VLOOKUP(A4,بيانات!D10:BZ68,29,0) -> 64.44 | C12: حافز تعويضى | F12: =ROUND(B19*9%,2) -> 416.98 | G12: 9% تأمين الشيخوخة
B13: =VLOOKUP(A4,بيانات!D10:BZ68,16,0) -> 0 | C13: علاوة مقطوعة 2019 | F13: =B23 -> 46.33 | G13: 1% اشتراك المكافاة
B14: =VLOOKUP(A4,بيانات!D10:BZ68,13,0) -> 775 | C14: مقطوعة مجمعة | F14: =F13 -> 46.33 | G14: 1% اشتراك المكافاة
B15: =VLOOKUP(A4,بيانات!D10:BZ68,15,0) -> 325 | C15: مقطوعة 2020 | F15: =F13 -> 46.33 | G15: 1% تأمين المرض
B16: =VLOOKUP(A4,بيانات!D10:BZ68,28,0) -> 228.17 | C16: 8% 2022 | F16: =VLOOKUP(A4,بيانات!D10:BT68,37,0) -> 0 | G16: مدة سابقة
B17: =VLOOKUP(A4,بيانات!D10:BZ68,20,0) -> 85 | C17: مكافئة إداريين | F17: =VLOOKUP(A4,بيانات!D10:BT68,42,0) -> 0 | G17: قسط اعارة
B18: =VLOOKUP(A4,بيانات!D10:BZ68,16,0) -> 0 | C18: حافز تكميلى | G18: استبدال
B19: =ROUND(SUM(B10:B18),2) -> 4633.16 | C19: جملة خاضع معاشات | F19: =VLOOKUP(A4,بيانات!D10:BT68,45,0) -> 0 | G19: قسط شركة أورانج
B21: =ROUND(B19*12%,2) -> 555.98 | C21: 12% تأمين الشيخوخة | F21: =VLOOKUP(A4,بيانات!D10:BT68,43,0) -> 31.9 | G21: كسب عمل
B22: =ROUND(B19*3%,2) -> 138.99 | C22: 3% تأمين المرض | F22: =VLOOKUP(A4,بيانات!D10:BT68,44,0) -> 29.65 | G22: دمغة عادية
B23: =ROUND(B19*1%,2) -> 46.33 | C23: 1%اشتراك مكافئة
B24: =ROUND(B19*1.25%,2) -> 57.91 | C24: 1.25% تأمين إصابة عمل | F24: =VLOOKUP(A4,بيانات!D10:BT68,47,0) ->  | G24: نقابة مهن تعليمية
F25: =VLOOKUP(A4,بيانات!D10:BT68,48,0) ->  | G25: رعاية صحية
F26: =VLOOKUP(A4,بيانات!D10:BT68,58,0) -> 0 | G26: مهن زراعية
F27: =VLOOKUP(A4,بيانات!D10:BU68,60,0) -> 0 | G27: مهن اجتماعية
F28: =VLOOKUP(A4,بيانات!D10:BT68,49,0) ->  | G28: تامين جماعى
F29: =VLOOKUP(A4,بيانات!D10:BT68,50,0) ->  | G29: نادى معلمين
F30: =VLOOKUP(A4,بيانات!D10:BT68,51,0) ->  | G30: رابطة جامعيين
F31: =VLOOKUP(A4,بيانات!D10:BT68,52,0) ->  | G31: 7% صندوق زمالة معلمين
F32: =VLOOKUP(A4,بيانات!D10:BT68,56,0) -> 0 | G32: صندوق زمالة بطنطا
F33: =VLOOKUP(A4,بيانات!D10:BT68,55,0) -> 0 | G33: لجنة نقابية بالقاهرة
F34: =VLOOKUP(A4,بيانات!D10:BT68,57,0) -> 0 | G34: بحث علمى
F35: =VLOOKUP(A4,بيانات!D10:BT68,53,0) -> 0 | G35: تطبيقية
B36: =ROUND(SUM(B19:B35),2) -> 5432.37 | C36: جملة المستحق | F36: =VLOOKUP(A4,بيانات!D10:BT68,46,0) -> 2 | G36: صندوق تكريم الشهداء
B37: =F42 -> 1377.42 | C37: جملة المستقطع | F37: =VLOOKUP(A4,بيانات!D10:BT68,40,0) -> 5 | G37: رعاية صحية 2%
B38: =B36-B37 -> 4054.95 | C38: الصافى | F38: =VLOOKUP(A4,بيانات!D10:BT68,41,0) ->  | G38: عمولة نقابة 2%
F39: =VLOOKUP(A4,بيانات!D10:BT68,59,0) -> 0 | G39: جزاءات
F40: =VLOOKUP(A4,بيانات!D10:BT68,54,0) -> 0 | G40: قرض نقابة
F41: =VLOOKUP(A4,بيانات!D10:BT68,61,0) -> 0.02 | G41: كسر القرش
F42: =SUM(F9:F41) -> 1377.42 | G42: جملة استقطاعات
B43: =NoToTxt(B38,"جنيه","قرشاً") -> فقط أربعة آلاف وأربعة وخمسون جنيه وخمسة وتسعون قرشاً | H43: لاغير
B44: رئيس الوحدة | D44: رئيس القسم | G44: مدير الموارد البشرية

Sheet بيان استقطاعات
A1: مديرية التربية والتعليم بطنطا | I1: مديرية التربية والتعليم بطنطا | Q1: مديرية التربية والتعليم بطنطا | Y1: مديرية التربية والتعليم بطنطا
A2: مدرسة ميت السراج المتكاملة | I2: مدرسة ميت السراج المتكاملة | Q2: مدرسة ميت السراج المتكاملة | Y2: مدرسة ميت السراج المتكاملة
A5: بيان المستحق عن صندوق زمالة | F5: عن شهر ابريل سنة 2022 | H5: بيان المستحق عن نقابة مهن تعليمية | N5: =F5 -> عن شهر ابريل سنة 2022 | P5: بيان المستحق عن صندوق الشهداء | V5: =F5 -> عن شهر ابريل سنة 2022 | X5: بيان المستحق عن صندوق الشهداء | AD5: =F5 -> عن شهر ابريل سنة 2022
A7: عدد | B7: اسم الموظف | C7: قيمة القسط | E7: عدد | F7: اسم الموظف | G7: قيمة القسط | I7: عدد | J7: اسم الموظف | K7: قيمة القسط | M7: عدد | N7: اسم الموظف | O7: قيمة القسط | Q7: عدد | R7: اسم الموظف | S7: قيمة القسط | U7: عدد | V7: اسم الموظف | W7: قيمة القسط | Y7: عدد | Z7: اسم الموظف | AA7: قيمة القسط | AC7: عدد | AD7: اسم الموظف | AE7: قيمة القسط
A8: 1 | B8: وصال حسين بلحه | C8: 150.1 | E8: 31 | F8: رباب محمود النجار | G8: 73.26 | I8: 1 | J8: وصال حسين بلحه | K8: 4.5 | M8: 31 | N8: رباب محمود النجار | O8: 4.5 | Q8: 1 | R8: وصال حسين بلحه | S8: 3 | U8: 31 | V8: رباب محمود النجار | W8: 1.5 | Y8: 1 | Z8: ناديه مسعد محمود | AA8: 2
A9: 2 | B9: عاطف عبدالعظيم النجار | C9: 127.47 | E9: 32 | F9: مروى ناجى سليمان | G9: 72.09 | I9: 2 | J9: عاطف عبدالعظيم النجار | K9: 4.5 | M9: 32 | N9: مروى ناجى سليمان | O9: 4.5 | Q9: 2 | R9: عاطف عبدالعظيم النجار | S9: 2.5 | U9: 32 | V9: مروى ناجى سليمان | W9: 1.5 | Y9: 2 | Z9: فاطمه فتح الله عبداللطيف | AA9: 1.5
A10: 3 | B10: مسعد ونس عبدالحميد | C10: 131.8 | E10: 33 | F10: مروه حمدى عزالعرب | G10: 73.06 | I10: 3 | J10: مسعد ونس عبدالحميد | K10: 4.5 | M10: 33 | N10: مروه حمدى عزالعرب | O10: 4.5 | Q10: 3 | R10: مسعد ونس عبدالحميد | S10: 2.5 | U10: 33 | V10: مروه حمدى عزالعرب | W10: 2 | Y10: 3 | Z10: ممدوح عبدالواحد عبدالعزيز | AA10: 1.5
A11: 4 | B11: محمد صالحين محمد | C11: 127.78 | E11: 34 | F11: حامد ابوبكر شلبى | G11: 70.43 | I11: 4 | J11: محمد صالحين محمد | K11: 4.5 | M11: 34 | N11: حامد ابوبكر شلبى | O11: 4.5 | Q11: 4 | R11: محمد صالحين محمد | S11: 2.5 | U11: 34 | V11: حامد ابوبكر شلبى | W11: 1 | Y11: 4 | Z11: احمد ابراهيم الغريب | AA11: 1.5
A12: 5 | B12: لبنى حمدى محمد | C12: 149.97 | E12: 35 | F12: علاء عبدالكريم محمود | G12: 140.23 | I12: 5 | J12: لبنى حمدى محمد | K12: 4.5 | M12: 35 | N12: علاء عبدالكريم محمود | O12: 4.5 | Q12: 5 | R12: لبنى حمدى محمد | S12: 2.5 | U12: 35 | V12: علاء عبدالكريم محمود | W12: 3 | Y12: 5 | Z12: اسماعيل عبدالمحسن سراج الدين | AA12: 1.5
A13: 6 | B13: جيهان فتحى محمود | C13: 124.16 | E13: 36 | F13: ارزاق طلعت احمد | G13: 142.58 | I13: 6 | J13: جيهان فتحى محمود | K13: 4.5 | M13: 36 | N13: ارزاق طلعت احمد | O13: 4.5 | Q13: 6 | R13: جيهان فتحى محمود | S13: 2.5 | U13: 36 | V13: حمدى طه العيسوى | W13: 3 | Y13: 6 | Z13: السعيد احمد السعيد | AA13: 1
A14: 7 | B14: محمد نجاح نصر | C14: 120.63 | E14: 37 | F14: محمد سعد السعداوى | G14: 127.47 | I14: 7 | J14: محمد نجاح نصر | K14: 4.5 | M14: 37 | N14: محمد سعد السعداوى | O14: 4.5 | Q14: 7 | R14: محمد نجاح نصر | S14: 2.5 | U14: 37 | V14: ارزاق طلعت احمد | W14: 2.5 | Y14: 7 | Z14: عبدالحليم انور صالح | AA14: 2
A15: 8 | B15: زينات البيلى حسب ا لله | C15: 116.69 | E15: 38 | F15: احمد فتحى امام | G15: 109.41 | I15: 8 | J15: زينات البيلى حسب ا لله | K15: 4.5 | M15: 38 | N15: احمد فتحى امام | O15: 4.5 | Q15: 8 | R15: زينات البيلى حسب ا لله | S15: 2.5 | U15: 38 | V15: محمد سعد السعداوى | W15: 2.5 | Y15: 8 | Z15: رمضان الصباحى السعداوى | AA15: 1.5
A16: 9 | B16: هاله المغازى محمد | C16: 113.33 | E16: 39 | F16: ابراهيم العرابى رزق | G16: 142.58 | I16: 9 | J16: هاله المغازى محمد | K16: 4.5 | M16: 39 | N16: ابراهيم العرابى رزق | O16: 4.5 | Q16: 9 | R16: هاله المغازى محمد | S16: 2 | U16: 39 | V16: فتحى المغازى محمد | W16: 2 | Y16: 9 | Z16: حسن شان غازى سليمان | AA16: 1.5
A17: 10 | B17: خالد ابوالنصر ميسره | C17: 111.08 | E17: 40 | F17: محمد العرابى رزق | G17: 123.78 | I17: 10 | J17: خالد ابوالنصر ميسره | K17: 4.5 | M17: 40 | N17: محمد العرابى رزق | O17: 4.5 | Q17: 10 | R17: خالد ابوالنصر ميسره | S17: 2 | U17: 40 | V17: احمد فتحى امام | W17: 2.5 | Y17: 10 | Z17: عبدالحميد عبدالمنعم عبدالحليم | AA17: 1.5
A18: 11 | B18: سماح حجازى بدر | C18: 109.42 | E18: 41 | F18: حامد عبدالرحمن عاصى | G18: 119.86 | I18: 11 | J18: سماح حجازى بدر | K18: 4.5 | M18: 41 | N18: حامد عبدالرحمن عاصى | O18: 4.5 | Q18: 11 | R18: سماح حجازى بدر | S18: 2 | U18: 41 | V18: ابراهيم العرابى رزق | W18: 2 | Y18: 11
A19: 12 | B19: علاء ابراهيم النمراوى | C19: 106.87 | E19: 42 | F19: ممدوح احمد الغريب | G19: 130.21 | I19: 12 | J19: علاء ابراهيم النمراوى | K19: 4.5 | M19: 42 | N19: ممدوح احمد الغريب | O19: 4.5 | Q19: 12 | R19: علاء ابراهيم النمراوى | S19: 2 | U19: 42 | V19: محمد العرابى رزق | W19: 2
A20: 13 | B20: سمير محمود البيلى | C20: 119.77 | E20: 43 | F20: ام الخير المغازى محمد | G20: 81.66 | I20: 13 | J20: سمير محمود البيلى | K20: 4.5 | M20: 43 | N20: ام الخير المغازى محمد | O20: 4.5 | Q20: 13 | R20: سمير محمود البيلى | S20: 2.5 | U20: 43 | V20: حامد عبدالرحمن عاصى | W20: 2
A21: 14 | B21: محمد رجب حسن | C21: 113.09 | E21: 44 | F21: نبيله محمود ابراهيم | G21: 75.73 | I21: 14 | J21: محمد رجب حسن | K21: 4.5 | M21: 44 | N21: نبيله محمود ابراهيم | O21: 4.5 | Q21: 14 | R21: محمد رجب حسن | S21: 2 | U21: 44 | V21: ممدوح احمد الغريب | W21: 1.5
A22: 15 | B22: مجدى يوسف الجندى | C22: 139.28 | E22: 45 | F22: محمود مصطفى محمود | G22: 79.9 | I22: 15 | J22: مجدى يوسف الجندى | K22: 4.5 | M22: 45 | N22: محمود مصطفى محمود | O22: 4.5 | Q22: 15 | R22: مجدى يوسف الجندى | S22: 2.5 | U22: 45 | V22: نبيله محمود ابراهيم | W22: 1.5
A23: 16 | B23: عاصم احمد عاصم | C23: 93.81 | E23: 46 | F23: لبنى عبدالرحيم يوسف العواد | G23: 72.08 | I23: 16 | J23: عاصم احمد عاصم | K23: 4.5 | M23: 46 | N23: لبنى عبدالرحيم يوسف العواد | O23: 4.5 | Q23: 16 | R23: عاصم احمد عاصم | S23: 2 | U23: 46 | V23: محمود مصطفى محمود | W23: 1.5
A24: 17 | B24: نهاد عبدالعزيز بدير | C24: 94.8 | E24: 47 | F24: نجلاء جلال محمود | G24: 72.08 | I24: 17 | J24: نهاد عبدالعزيز البيلى | K24: 4.5 | M24: 47 | N24: نجلاء جلال محمود | O24: 4.5 | Q24: 17 | R24: نهاد عبدالعزيز البيلى | S24: 2 | U24: 47 | V24: لبنى عبدالرحمن يوسف | W24: 1.5
A25: 18 | B25: محمود شحاته محمد | C25: 94.34 | E25: 48 | F25: حمدى طه العيسوى | G25: 160.99 | I25: 18 | J25: محمود شحاته محمد | K25: 4.5 | M25: 48 | N25: حمدى طه العيسوى | O25: 4.5 | Q25: 18 | R25: محمود شحاته محمد | S25: 2 | U25: 48 | V25: نجلاء جلال محمود | W25: 1.5
A26: 19 | B26: محمد الحايس البدراوى | C26: 116.97 | E26: 49 | F26: السعيد عبدالنبى السيد | G26: 128.06 | I26: 19 | J26: محمد الحايس البدراوى | K26: 4.5 | M26: 49 | N26: السعيد عبدالنبى السيد | O26: 4.5 | Q26: 19 | R26: محمد الحايس البدراوى | S26: 2 | U26: 49 | V26: ام الخير المغازى محمد | W26: 1.5
A27: 20 | B27: شيماء رأفت محمد | C27: 79.19 | E27: 50 | F27: فاطمه جابر عباس | G27: 148.95 | I27: 20 | J27: شيماء رأفت محمد | K27: 4.5 | M27: 50 | N27: فاطمه جابر عباس | O27: 4.5 | Q27: 20 | R27: شيماء رأفت محمد | S27: 1.5 | U27: 50 | V27: السعيد عبدالنبى السيد | W27: 2.5
A28: 21 | B28: شهيره السعيد عبدالغنى | C28: 81.66 | E28: 51 | F28: رجاء صلاح محمد | G28: 113.26 | I28: 21 | J28: شهيره السعيد عبدالغنى | K28: 4.5 | M28: 51 | N28: رجاء صلاح محمد | O28: 4.5 | Q28: 21 | R28: شهيره السعيد عبدالغنى | S28: 1.5 | U28: 51 | V28: فاطمه جابر عباس | W28: 3
A29: 22 | B29: هبه عبدالعزيز صلاح | C29: 81.66 | E29: 52 | F29: فتحى المغازى محمد | G29: 119.64 | I29: 22 | J29: هبه عبدالعزيز صلاح | K29: 4.5 | M29: 52 | N29: فتحى المغازى محمد | O29: 4.5 | Q29: 22 | R29: هبه عبدالعزيز صلاح | S29: 1.5 | U29: 52 | V29: رجاء صلاح محمد | W29: 2
A30: 23 | B30: ابراهيم كمال ايوب | C30: 108.52 | E30: 53 | F30: السيد بدير السيد | G30: 113.33 | I30: 23 | J30: ابراهيم كمال ايوب | K30: 4.5 | M30: 53 | N30: السيد بدير السيد | O30: 4.5 | Q30: 23 | R30: ابراهيم كمال ايوب | S30: 2 | U30: 53 | V30: السيد بدير السيد | W30: 2
A31: 24 | B31: نجلاء حسنى ابراهيم | C31: 102.8 | E31: 54 | F31: نعيمه المغاورى طه | G31: 124.16 | I31: 24 | J31: نجلاء حسنى ابراهيم | K31: 4.5 | M31: 54 | N31: نعيمه المغاورى طه | O31: 4.5 | Q31: 24 | R31: نجلاء حسنى ابراهيم | S31: 2 | U31: 54 | V31: نعيمه المغازى طه | W31: 2
A32: 25 | B32: محمد محمد الجمل | C32: 82.38 | E32: 55 | F32: حنان راشد بركات | G32: 109.42 | I32: 25 | J32: محمد محمد الجمل | K32: 4.5 | M32: 55 | N32: حنان راشد بركات | O32: 4.5 | Q32: 25 | R32: محمد محمد الجمل | S32: 1.5 | U32: 55 | V32: حنان راشد بركات | W32: 2
A33: 26 | B33: سعدية السعيد عبدالغنى | C33: 79.64 | E33: 56 | F33: نجلاء فتحى عبدالمتعال | G33: 109.23 | I33: 26 | J33: سعدية السعيد عبدالغنى | K33: 4.5 | M33: 56 | N33: نجلاء فتحى عبدالمتعال | O33: 4.5 | Q33: 26 | R33: سعدية السعيد عبدالغنى | S33: 1.5 | U33: 56 | V33: نجلاء فتحى عبدالمتعال | W33: 2
A34: 27 | B34: مروه عبدالعزيز بدير | C34: 79.19 | E34: 57 | F34: رحاب فؤاد مجاهد | G34: 95.03 | I34: 27 | J34: مروه عبدالعزيز بدير | K34: 4.5 | M34: 57 | N34: رحاب فؤاد مجاهد | O34: 4.5 | Q34: 27 | R34: مروه عبدالعزيز بدير | S34: 1.5 | U34: 57 | V34: رحاب فؤاد مجاهد | W34: 2
A35: 28 | B35: نعمه محمد يونس | C35: 79.19 | E35: 58 | F35: محمد ابوالنجا محمد | G35: 116.61 | I35: 28 | J35: نعمه محمد يونس | K35: 4.5 | M35: 58 | N35: محمد ابوالنجا محمد | O35: 4.5 | Q35: 28 | R35: نعمه محمد يونس | S35: 1.5 | U35: 58 | V35: محمد ابوالنجا محمد | W35: 2
A36: 29 | B36: امل عبد النبى النجار | C36: 73.25 | E36: 59 | F36: محمد فتحى بدر | G36: 73.26 | I36: 29 | J36: امل عبد النبى النجار | K36: 4.5 | M36: 59 | N36: محمد فتحى بدر | O36: 4.5 | Q36: 29 | R36: امل عبد النبى النجار | S36: 1.5 | U36: 59 | V36: محمد فتحى بدر | W36: 1.5
A37: 30 | B37: اميره مصطفى السيد | C37: 75.41 | E37: 60 | F37: ايمان محمد ابراهيم | G37: 80.83 | I37: 30 | J37: اميره مصطفى السيد | K37: 4.5 | M37: 60 | N37: ايمان محمد ابراهيم | O37: 4.5 | Q37: 30 | R37: اميره مصطفى السيد | S37: 1.5 | U37: 60 | V37: ايمان محمد ابراهيم | W37: 1.5
U38: 61
C39: =SUM(C8:C37) -> 3184.25 | G39: =SUM(G8:G38) -> 3199.18 | K39: =SUM(K8:K38) -> 135 | O39: =SUM(O8:O38) -> 135 | S39: =SUM(S8:S37) -> 61 | W39: =SUM(W8:W38) -> 59 | AA39: =SUM(AA8:AA37) -> 15.5 | AE39: =SUM(AE8:AE38) -> 0
A40: الجملة | G40: =C39+G39 -> 6383.43 | I40: الجملة | O40: =K39+O39 -> 270 | Q40: الجملة | W40: =S39+W39 -> 120 | Y40: الجملة | AE40: =AA39+AE39 -> 15.5

Sheet استقطاعات 2
A1: إدارة شرق المحلة التعليمية | G1: إدارة شرق المحلة التعليمية
A2: مدرسة ميت السراج المتكاملة | G2: مدرسة ميت السراج المتكاملة
A4: بيان المستحق المهن التطبيقية | G4: بيان المستحق قسط شركة اورانج
A5: عن شهر ابريل سنة 2022 | G5: =A5 -> عن شهر ابريل سنة 2022
A7: عدد | B7: اسم الموظف | C7: قيمة القسط | G7: عدد | H7: اسم الموظف | I7: قيمة القسط
A8: 1 | B8: خالد ابوالنصر ميسره | C8: 9 | G8: 1 | H8: اسماعيل عبدالمجيد سراج الدين | I8: 70
A9: 2 | B9: فتحى المغازى محمد | C9: 9
A10: 3 | B10: عبدالحليم انور صالح | C10: 9
A11: 4 | B11: رمضان الصباحى السعداوى | C11: 9
A13: الجملة | C13: 45 | G13: الجملة | I13: 70
A15: إدارة شرق المحلة التعليمية | G15: إدارة شرق المحلة التعليمية
A16: مدرسة ميت السراج المتكاملة | G16: مدرسة ميت السراج المتكاملة
A18: بيان المستحق المهن الزراعية | G18: بيان المستحق بدل إعارة
A19: =A5 -> عن شهر ابريل سنة 2022 | G19: =A5 -> عن شهر ابريل سنة 2022
A21: عدد | B21: اسم الموظف | C21: قيمة القسط | G21: عدد | H21: اسم الموظف | I21: قيمة القسط | R21: المهن الاجتماعية كل 6 شهور 50 جنية لكل فر مشترك بالنقابة تخصم فى يناير ويوليو
A22: 1 | B22: رحاب فؤاد مجاهد | C22: 7.1 | G22: 1 | H22: مسعد ونس عبدالحميد | I22: 90
A25: الجملة | C25: 7.1 | G25: الجملة | I25: =SUM(I22:I24) -> 90
A27: إدارة شرق المحلة التعليمية | G27: إدارة شرق المحلة التعليمية
A28: مدرسة ميت السراج المتكاملة | G28: مدرسة ميت السراج المتكاملة
A30: بيان المستحق قرض حسن نقابة مهن تعليمية | G30: بيان المستحق استبعاد حافز الأداء
A31: =A5 -> عن شهر ابريل سنة 2022 | G31: =A5 -> عن شهر ابريل سنة 2022
A33: عدد | B33: اسم الموظف | C33: قيمة القسط | G33: عدد | H33: استبعاد حافز الأداء | I33: قيمة الخصم
A34: 1 | B34: مسعد ونس عبدالحميد | C34: 250 | G34: 1 | H34: لبنى حمدى محمد | I34: 279.3
A37: الجملة | C37: 250 | I37: =I34+I35+I36 -> 279.3
A39: إدارة شرق المحلة التعليمية
A40: مدرسة ميت السراج المتكاملة
A42: بيان المستحق عن المهن الاجتماعية
A43: =A5 -> عن شهر ابريل سنة 2022
A45: عدد | B45: اسم الموظف | C45: قيمة القسط
A46: 1 | B46: ابراهيم كمال ايوب | C46: 50
A47: 2 | B47: محمد سعد السعداوى | C47: 50
A48: 3 | B48: رجاء صلاح محمد محمود | C48: 50
A49: 4 | B49: محمد العرابى رزق | C49: 50
A50: الجملة | C50: =SUM(C46:C49) -> 200
